Workbook

Sheet AER only (hidden)
B1: Data in these columns used for data validation and database purposes.
B2: Date last modified: | C2: 2016-08-08 | D2: added new business names, improved column heading formatting
Z4: FOR ELECTRICITY BUSINESSES ONLY
Z5: Feeder Types | AD5: TasNetworks (D) | AE5: MAIFI flag | AF5: Feeder Names
Z6: CBD | AA6: Urban | AB6: Short rural | AC6: long rural | AD6: EXTRA
B7: dms_TradingName_List | C7: dms_TradingNameFull_List | D7: dms_ABN_List | E7: dms_JurisdictionList | F7: dms_Sector_List | G7: dms_Segment_List | H7: dms_FormControl_List | I7: dms_RPT_List | J7: dms_RPTMonth_List | K7: dms_CRCPlength_List | L7: dms_FRCPlength_List | M7: dms_663_List | N7: dms_DeterminationRef_List | O7: dms_Addr1_List | P7: dms_Addr2_List | Q7: dms_Suburb_List | R7: dms_State_List | S7: dms_PostCode_List | T7: dms_PAddr1_List | U7: dms_PAddr2_List | V7: dms_PSuburb_List | W7: dms_PState_List | X7: dms_PPostCode_List | Z7: dms_CBD_flag | AA7: dms_Urban_flag | AB7: dms_ShortRural_flag | AC7: dms_LongRural_flag | AD7: dms_FeederType_5_flag | AE7: dms_MAIFI_flag_List | AF7: dms_FeederName_1 | AG7: dms_FeederName_2 | AH7: dms_FeederName_3 | AI7: dms_FeederName_4 | AJ7: dms_FeederName_5
B8: ActewAGL Distribution | C8: ActewAGL Distribution | D8: 76670568688 | E8: ACT | F8: Electricity | G8: Distribution | H8: Revenue cap | I8: Financial | J8: June | K8: 5 | L8: 5 | M8: 5 | N8: 2014-19 Distribution Determination | O8: 40 Bunda Street | Q8: CANBERRA | R8: ACT | S8: 2600 | T8: GPO BOX 366 | V8: CANBERRA | W8: ACT | X8: 2601 | Z8: NO | AA8: YES | AB8: YES | AC8: NO | AD8: NO | AF8: CBD | AG8: Urban | AH8: Short rural | AI8: Long rural | AK8: ActewAGL Distribution
B9: ActewAGL Distribution (Tx Assets) | C9: ActewAGL Distribution (Tx Assets) | D9: 76670568688 | E9: ACT | F9: Electricity | G9: Distribution | H9: Revenue cap | I9: Financial | J9: June | K9: 5 | L9: 5 | M9: 5 | N9: distribution determination | O9: 40 Bunda Street | Q9: CANBERRA | R9: ACT | S9: 2600 | T9: GPO BOX 366 | V9: CANBERRA | W9: ACT | X9: 2601 | AF9: CBD | AG9: Urban | AH9: Short rural | AI9: Long rural | AK9: ActewAGL Distribution (Tx Assets)
B10: ActewAGL Gas | C10: ActewAGL Gas | D10: 76670568688 | E10: ACT | F10: Gas | G10: Distribution | H10: Weighted average price cap | I10: Financial | J10: June | K10: 5 | L10: 5 | M10: x | O10: 40 Bunda Street | Q10: CANBERRA | R10: ACT | S10: 2600 | T10: GPO BOX 366 | V10: CANBERRA | W10: ACT | X10: 2601 | AK10: ActewAGL Gas
B11: AGN (SA) | C11: AGN (SA) | D11: 78551685 | E11: SA | F11: Gas | G11: Distribution | H11: Revenue cap | I11: Financial | J11: June | K11: 5 | L11: 5 | M11: 5 | N11: distribution determination | R11: SA | AF11: CBD | AG11: Urban | AH11: Short rural | AI11: Long rural | AK11: AGN (SA)
B12: AGN (Victoria) | C12: Australian Gas Networks Limited | D12: 19078551685 | E12: Vic | F12: Gas | G12: Distribution | H12: Weighted average price cap | I12: Calendar | J12: December | K12: 5 | L12: 5 | M12: x | O12: Level 10 | P12: 81 Flinders Street | Q12: ADELAIDE | R12: SA | S12: 5000 | AK12: AGN (Victoria)
B13: Amadeus | C13: APT Pipelines (NT) Pty Ltd | D13: 39009737393 | E13: NT | F13: Gas | G13: Transmission | H13: Weighted average price cap | I13: Financial | J13: June | K13: 5 | L13: 5 | M13: x | N13: n/a | O13: Level 19, HSBC Building | P13: 580 George Street | Q13: SYDNEY | R13: NSW | S13: 2000 | T13: Level 19, HSBC Building | U13: 580 George Street | V13: SYDNEY | W13: NSW | X13: 2000 | AK13: Amadeus
B14: APA GasNet | C14: APA VTS Australia Limited | D14: 79096457868 | E14: Vic | F14: Gas | G14: Transmission | H14: Weighted average price cap | I14: Calendar | J14: December | K14: 5 | L14: 5 | M14: x | O14: Level 19, HSBC Building | P14: 580 George Street | Q14: SYDNEY | R14: NSW | S14: 2000 | T14: PO Box R41 | V14: ROYAL EXCHANGE | W14: NSW | X14: 1225 | AK14: APA GasNet
B15: Ausgrid | C15: Ausgrid | D15: 67505337385 | E15: NSW | F15: Electricity | G15: Distribution | H15: Revenue cap | I15: Financial | J15: June | K15: 5 | L15: 5 | M15: 5 | N15: 2014-19 Distribution Determination | O15: 570 George St | Q15: SYDNEY | R15: NSW | S15: 2000 | Z15: YES | AA15: YES | AB15: YES | AC15: YES | AD15: NO | AF15: CBD | AG15: Urban | AH15: Short rural | AI15: Long rural | AK15: Ausgrid
B16: Ausgrid (Tx Assets) | C16: Ausgrid (Tx Assets) | D16: 67505337385 | E16: NSW | F16: Electricity | G16: Distribution | H16: Revenue cap | I16: Financial | J16: June | K16: 5 | L16: 5 | M16: 5 | N16: distribution determination | R16: NSW | AF16: CBD | AG16: Urban | AH16: Short rural | AI16: Long rural | AK16: Ausgrid (Tx Assets)
B17: AusNet (D) | C17: AusNet Services (D) | D17: 91064651118 | E17: Vic | F17: Electricity | G17: Distribution | H17: Revenue cap | I17: Calendar | J17: December | K17: 5 | L17: 5 | M17: 2 | N17: 2016-20 Distribution Determination | O17: Level 32 | P17: 2 Southbank Boulevard | Q17: SOUTHBANK | R17: Vic | S17: 3006 | T17: Locked Bag 14051 | V17: MELBOURNE CITY MAIL CENTRE | W17: VIC | X17: 8001 | AA17: YES | AB17: YES | AC17: YES | AD17: NO | AF17: CBD | AG17: Urban | AH17: Short rural | AI17: Long rural | AK17: AusNet (D)
B18: AusNet (Gas) | C18: AusNet Gas Services | E18: Vic | F18: Gas | G18: Distribution | H18: Weighted average price cap | I18: Calendar | J18: December | K18: 5 | L18: 5 | M18: X | AK18: AusNet (Gas)
B19: AusNet (T) | C19: AusNet (T) | D19: 78079798173 | E19: Vic | F19: Electricity | G19: Transmission | H19: Revenue cap | I19: Financial | J19: March | K19: 5 | L19: 5 | M19: 2 | N19: transmission determination | O19: Level 32 | P19: 2 Southbank Boulevard | Q19: SOUTHBANK | R19: Vic | S19: 3006 | AF19: CBD | AG19: Urban | AH19: Short rural | AI19: Long rural | AK19: AusNet (T)
B20: Australian Distribution Co. | C20: Australian Distribution Co. | D20: 11222333444 | E20: - | F20: Electricity | G20: Distribution | H20: Revenue cap | I20: Financial | J20: June | K20: 5 | L20: 5 | M20: 2 | N20: distribution determination | O20: 123 Straight Street | Q20: SYDNEY | R20: NSW | S20: 2000 | T20: PO Box 123 | V20: SYDNEY | W20: NSW | X20: 2000 | AF20: CBD | AG20: Urban | AH20: Short rural | AI20: Long rural | AK20: Australian Distribution Co.
B21: Australian Transmission Co. | C21: Australian Transmission Co. | D21: 11222333444 | E21: - | F21: Electricity | G21: Transmission | H21: Revenue cap | I21: Financial | J21: June | K21: 5 | L21: 5 | M21: 5 | N21: transmission determination | O21: 123 Straight Street | Q21: SYDNEY | R21: NSW | S21: 2000 | T21: PO Box 123 | V21: SYDNEY | W21: NSW | X21: 2000 | AF21: CBD | AG21: Urban | AH21: Short rural | AI21: Long rural | AK21: Australian Transmission Co.
B22: CitiPower | C22: CitiPower | D22: 76064651056 | E22: Vic | F22: Electricity | G22: Distribution | H22: Revenue cap | I22: Calendar | J22: December | K22: 5 | L22: 5 | M22: 2 | N22: 2016-20 Distribution Determination | O22: 40 Market Street | Q22: MELBOURNE | R22: Vic | S22: 3000 | T22: Locked Bag 14090 | V22: MELBOURNE | W22: VIC | X22: 8001 | Z22: YES | AA22: YES | AB22: NO | AC22: NO | AD22: NO | AF22: CBD | AG22: Urban | AH22: Short rural | AI22: Long rural | AK22: CitiPower
B23: Directlink | C23: Directlink | D23: 16779340889 | E23: Qld | F23: Electricity | G23: Transmission | H23: Revenue cap | I23: Financial | J23: June | K23: 9 | L23: 5 | M23: 5 | N23: transmission determination | R23: NSW | AF23: CBD | AG23: Urban | AH23: Short rural | AI23: Long rural | AK23: Directlink
B24: ElectraNet | C24: ElectraNet | D24: 41094482416 | E24: SA | F24: Electricity | G24: Transmission | H24: Revenue cap | I24: Financial | J24: June | K24: 5 | L24: 5 | M24: 5 | N24: transmission determination | O24: 52-55 East Terrace | P24: Rymill Park | Q24: ADELAIDE | R24: SA | S24: 5000 | T24: PO Box 7096 | U24: Hutt Street Post Office | V24: ADELAIDE | W24: SA | AF24: CBD | AG24: Urban | AH24: Short rural | AI24: Long rural | AK24: ElectraNet
B25: Endeavour Energy | C25: Endeavour Energy | D25: 59253130878 | E25: NSW | F25: Electricity | G25: Distribution | H25: Revenue cap | I25: Financial | J25: June | K25: 5 | L25: 5 | M25: 5 | N25: 2014-19 Distribution Determination | O25: 51 Huntingwood Drive | Q25: HUNTINGWOOD | R25: NSW | S25: 2148 | T25: PO Box 811 | V25: SEVEN HILLS | W25: NSW | Z25: NO | AA25: YES | AB25: YES | AC25: YES | AD25: NO | AF25: CBD | AG25: Urban | AH25: Short rural | AI25: Long rural | AK25: Endeavour Energy
B26: Energex | C26: Energex | D26: 40078849055 | E26: Qld | F26: Electricity | G26: Distribution | H26: Revenue cap | I26: Financial | J26: June | K26: 5 | L26: 5 | M26: 5 | N26: 2015-20 Distribution Determination | O26: 26 Reddacliff Street | Q26: NEWSTEAD | R26: Qld | S26: 4006 | T26: 26 Reddacliff Street | V26: NEWSTEAD | W26: QLD | X26: 4006 | Z26: YES | AA26: YES | AB26: YES | AC26: NO | AD26: NO | AF26: CBD | AG26: Urban | AH26: Short rural | AI26: Long rural | AK26: Energex
B27: Ergon Energy | C27: Ergon Energy | D27: 50087646062 | E27: Qld | F27: Electricity | G27: Distribution | H27: Revenue cap | I27: Financial | J27: June | K27: 5 | L27: 5 | M27: 5 | N27: 2015-20 Distribution Determination | O27: 22 Walker Street | Q27: TOWNSVILLE | R27: Qld | S27: 4810 | T27: Po Box 264 | V27: FORTITUDE VALLEY | W27: QLD | X27: 4006 | Z27: NO | AA27: YES | AB27: YES | AC27: YES | AD27: NO | AF27: CBD | AG27: Urban | AH27: Short rural | AI27: Long rural | AK27: Ergon Energy
B28: Essential Energy | C28: Essential Energy | D28: 37428185226 | E28: NSW | F28: Electricity | G28: Distribution | H28: Revenue cap | I28: Financial | J28: June | K28: 5 | L28: 5 | M28: 5 | N28: 2014-19 Distribution Determination | O28: 8 Buller Street | Q28: PORT MACQUARIE | R28: NSW | T28: PO Box 5730 | V28: PORT MACQUARIE | W28: NSW | AB28: YES | AC28: YES | AD28: NO | AF28: CBD | AG28: Urban | AH28: Short rural | AI28: Long rural | AK28: Essential Energy
B29: Jemena Electricity | C29: Jemena Electricity | D29: 82064651083 | E29: Vic | F29: Electricity | G29: Distribution | H29: Revenue cap | I29: Calendar | J29: December | K29: 5 | L29: 5 | M29: 2 | N29: 2016-20 Distribution Determination | O29: Level 16 | P29: 567 Collins Street | Q29: MELBOURNE | R29: VIC | S29: 3000 | T29: PO Box 16182 | V29: MELBOURNE | W29: VIC | X29: 8001 | AB29: YES | AC29: NO | AD29: NO | AF29: CBD | AG29: Urban | AH29: Short rural | AI29: Long rural | AK29: Jemena Electricity
B30: JGN | C30: Jemena Gas Networks | E30: NSW | F30: Gas | G30: Distribution | H30: Weighted average price cap | I30: Financial | J30: June | K30: 5 | L30: 5 | AK30: JGN
B31: Multinet Gas | C31: Multinet Gas (DB No.1) Pty Ltd (ACN 086 026 986), Multinet Gas (DB No.2) Pty Ltd (ACN 086 230 122) | D31: 86026986 | E31: Vic | F31: Gas | G31: Distribution | H31: Weighted average price cap | I31: Calendar | J31: December | K31: 5 | L31: 5 | M31: x | AK31: Multinet Gas
B32: Murraylink | C32: Murraylink | D32: 79181207909 | E32: SA | F32: Electricity | G32: Transmission | H32: Revenue cap | I32: Financial | J32: June | K32: 5 | L32: 5 | M32: 5 | N32: transmission determination | AF32: CBD | AG32: Urban | AH32: Short rural | AI32: Long rural | AK32: Murraylink
B33: Powercor Australia | C33: Powercor Australia | D33: 89064651109 | E33: Vic | F33: Electricity | G33: Distribution | H33: Revenue cap | I33: Calendar | J33: December | K33: 5 | L33: 5 | M33: 2 | N33: 2016-20 Distribution Determination | O33: 40 Market Street | Q33: MELBOURNE | R33: Vic | S33: 3000 | T33: Locked bag 14090 | V33: MELBOURNE | W33: VIC | X33: 8001 | AB33: YES | AC33: YES | AD33: NO | AF33: CBD | AG33: Urban | AH33: Short rural | AI33: Long rural | AK33: Powercor Australia
B34: Powerlink | C34: Queensland Electricity Transmission Corporation Limited trading as Powerlink Queensland | D34: 82078849233 | E34: Qld | F34: Electricity | G34: Transmission | H34: Revenue cap | I34: Financial | J34: June | K34: 5 | L34: 5 | M34: 5 | N34: transmission determination | O34: 33 Harold St | Q34: VIRGINIA | R34: Qld | S34: 4014 | T34: PO Box 1193 | V34: VIRGINIA | W34: QLD | X34: 4014 | AF34: CBD | AG34: Urban | AH34: Short rural | AI34: Long rural | AK34: Powerlink
B35: Roma to Brisbane Pipeline | C35: APT Petroleum Pipelines Limited t/a Roma to Brisbane Pipeline | D35: 009 737 393 | E35: Qld | F35: Gas | G35: Transmission | H35: Revenue cap | I35: Financial | J35: June | K35: 5 | L35: 5 | M35: x | N35: n/a | AF35: CBD | AG35: Urban | AH35: Short rural | AI35: Long rural | AK35: Roma to Brisbane Pipeline
B36: SA Power Networks | C36: SA Power Networks | D36: 13332330749 | E36: SA | F36: Electricity | G36: Distribution | H36: Revenue cap | I36: Financial | J36: June | K36: 5 | L36: 5 | M36: 5 | N36: 2015-20 Distribution Determination | O36: 1 Anzac Highway | Q36: KESWICK | R36: SA | S36: 5035 | T36: GPO Box 77 | V36: ADELAIDE | W36: SA | AB36: YES | AC36: YES | AD36: NO | AF36: CBD | AG36: Urban | AH36: Short rural | AI36: Long rural | AK36: SA Power Networks
B37: TasNetworks (D) | C37: TasNetworks (D) | D37: 24167357299 | E37: Tas | F37: Electricity | G37: Distribution | H37: Revenue cap | I37: Financial | J37: June | K37: 5 | L37: 5 | M37: 5 | N37: distribution determination | O37: 21 Kirksway Place | Q37: HOBART | R37: Tas | S37: 7000 | T37: GPO Box 191 | V37: HOBART | W37: Tas | AB37: YES | AC37: YES | AD37: YES | AF37: Critical Infrastructure | AG37: High density commercial | AH37: Urban | AI37: High density rural | AJ37: Low density rural | AK37: TasNetworks (D)
B38: TasNetworks (T) | C38: TasNetworks (T) | D38: 24167357299 | E38: Tas | F38: Electricity | G38: Transmission | H38: Revenue cap | I38: Financial | J38: March | K38: 5 | L38: 5 | M38: 5 | N38: transmission determination | O38: 1-7 Maria Street | Q38: LENAH VALLEY | R38: Tas | S38: 7008 | T38: PO Box 606 | V38: MOONAH | W38: Tas | AF38: CBD | AG38: Urban | AH38: Short rural | AI38: Long rural | AK38: TasNetworks (T)
B39: TransGrid | C39: TransGrid | D39: 19622755774 | E39: NSW | F39: Electricity | G39: Transmission | H39: Revenue cap | I39: Financial | J39: June | K39: 5 | L39: 4 | M39: 5 | N39: transmission determination | O39: 180 Thomas Street | Q39: HAYMARKET | R39: NSW | S39: 2000 | T39: PO Box A1000 | V39: SYDNEY SOUTH | W39: NSW | AF39: CBD | AG39: Urban | AH39: Short rural | AI39: Long rural | AK39: TransGrid
B40: United Energy | C40: United Energy | D40: 70064651029 | E40: Vic | F40: Electricity | G40: Distribution | H40: Revenue cap | I40: Calendar | J40: December | K40: 5 | L40: 5 | M40: 2 | N40: 2016-20 Distribution Determination | O40: Level 3 | P40: 6 Nexus Court | Q40: MULGRAVE | R40: Vic | S40: 3149 | T40: PO Box 449 | V40: MOUNT WAVERLEY | W40: VIC | X40: 3170 | AB40: YES | AC40: NO | AD40: NO | AF40: CBD | AG40: Urban | AH40: Short rural | AI40: Long rural | AK40: United Energy
B41: Western Power (D) | C41: Western Power (D) | D41: 18540492861 | E41: WA | F41: Electricity | G41: Distribution | H41: Revenue cap | I41: Financial | J41: June | K41: 12 | L41: 4 | M41: x | N41: distribution determination | O41: 363 Wellington Street | Q41: PERTH | R41: WA | S41: 6000 | T41: GPO Box L921 | V41: PERTH | W41: WA | X41: 6842 | AB41: YES | AC41: YES | AD41: NO | AE41: NO | AF41: CBD | AG41: Urban | AH41: Short rural | AI41: Long rural | AK41: Western Power (D)
B42: Western Power (T) | C42: Western Power (T) | D42: 18540492861 | E42: WA | F42: Electricity | G42: Transmission | H42: Revenue cap | I42: Financial | J42: June | K42: 12 | L42: 4 | M42: x | N42: transmission determination | O42: 363 Wellington Street | Q42: PERTH | R42: WA | S42: 6000 | T42: GPO Box L921 | V42: PERTH | W42: WA | X42: 6842 | AB42: YES | AC42: YES | AD42: NO | AF42: CBD | AG42: Urban | AH42: Short rural | AI42: Long rural | AK42: Western Power (T)
W45: For EB & Reset RINs only
B46: The Reg Year Ending (dms_RYE) must be set to the last year of the regulatory period. For forecast data is is usually (FRCP_y5) for actual it is a single year (CRY). For historical actual data the RYE will need to be set manually in the business details sheet by setting the dms_Multiyear_flag to 1 and putting the correct value in 'dms_Specified_FinalYear. See cells C67:C68 | G46: =IF(dms_RPT="financial",VALUE(LEFT(CRCP_y1,4)-1)&"-"&TEXT(VALUE(RIGHT(CRCP_y1,2)-1),"00"),VALUE(LEFT(CRCP_y1,4)-1)) -> 2009-10 | N46: Drop down selector box for CA & Reset RINs. | O46: For CA & Reset RINs only | W46: for DNSP only | AI46: Reason for interruption | AJ46: dms_Reason_Interruption_Detailed | AK46: dms_Reason_Interruption
B47: dms_Model_List | C47: DELETE NR 'CRY' IF NOT AN ANNUAL RIN (EB, CA , ARR) | E47: dms_RYE_Formula_Result | N47: dms_0203_ProjectType | O47: dms_020303_01_UOM | P47: dms_020501_01_UOM | Q47: dms_020501_02_UOM | R47: dms_020501_03_UOM | S47: dms_020501_04_UOM | T47: dms_020603_01_UOM | U47: dms_040102_01_UOM | V47: dms_040102_04_UOM | W47: dms_030601_01_UOM | X47: dms_030601_02_UOM | Y47: dms_030701_01_UOM | Z47: dms_030702_01_UOM | AA47: dms_030703_01_UOM | AI47: Animal | AJ47: Animal impact | AK47: Animal
B48: ARR | C48: ANNUAL REPORTING STATEMENT | E48: =LEFT(dms_SingleYear_FinalYear_Result,2)&RIGHT(dms_SingleYear_FinalYear_Result,2) -> 2016 | F48: =LEFT(dms_SingleYear_FinalYear_Result,2)&RIGHT(dms_SingleYear_FinalYear_Result,2) | H48: Formula errors are OK | N48: New line on new route - single circuit | O48: Circuit line length in km | P48: 0's | Q48: 0's | R48: 0's | S48: 0's | T48: 0's | U48: 0's | V48: days | W48: minutes/customer | X48: minutes/customer | Y48: Customer / km | Z48: % | AA48: km | AJ48: Animal nesting/burrowing, etc and other | AK48: Asset failure
B49: CA | C49: CATEGORY ANALYSIS | E49: =LEFT(dms_SingleYear_FinalYear_Result,2)&RIGHT(dms_SingleYear_FinalYear_Result,2) -> 2016 | F49: =LEFT(dms_SingleYear_FinalYear_Result,2)&RIGHT(dms_SingleYear_FinalYear_Result,2) | H49: Formula errors are OK | N49: New line on new route - dual circuit | O49: Circuit line length in km | P49: 0's | Q49: 0's | R49: 0's | S49: 0's | T49: 0's | U49: 0's | V49: 0's | W49: minutes/customer | X49: minutes/customer | Y49: MWh/customer | Z49: Number of spans | AJ49: Other | AK49: Other
B50: CPI | C50: CPI | N50: New line on new route - other | O50: Circuit line length in km | P50: MVA added | Q50: MVA added | R50: MVA added | S50: MVA added | T50: 0's | U50: 0's | V50: $0s | W50: interruptions/customer | X50: interruptions/customer | Y50: kVA / customer | Z50: Number of spans | AI50: Asset failure | AJ50: LV | AK50: Overloads
B51: EB | C51: ECONOMIC BENCHMARKING | E51: =LEFT(dms_SingleYear_FinalYear_Result,2)&RIGHT(dms_SingleYear_FinalYear_Result,2) -> 2016 | F51: =LEFT(dms_SingleYear_FinalYear_Result,2)&RIGHT(dms_SingleYear_FinalYear_Result,2) | H51: Formula errors are OK | N51: Line rebuild over existing route - single circuit | O51: Circuit line length in km | P51: 0's | Q51: 0's | R51: 0's | S51: 0's | T51: 0's | U51: $0s | V51: 0's | W51: interruptions/customer | X51: interruptions/customer | Z51: Number of spans | AJ51: Distribution substation | AK51: Planned
B52: PTRM | C52: POST TAX REVENUE MODEL | E52: =LEFT(dms_MultiYear_FinalYear_Result,2)&RIGHT(dms_MultiYear_FinalYear_Result,2) -> 2020 | F52: =LEFT(dms_MultiYear_FinalYear_Result,2)&RIGHT(dms_MultiYear_FinalYear_Result,2) | N52: Line rebuild over existing route - dual circuit | O52: Number | P52: total spend $0s | Q52: total spend $0s | R52: total spend $0s | S52: total spend $0s | T52: (per cent) | Z52: Number of spans | AJ52: HV | AK52: Network business
B53: Reset | C53: REGULATORY REPORTING STATEMENT | E53: =LEFT(dms_MultiYear_FinalYear_Result,2)&RIGHT(dms_MultiYear_FinalYear_Result,2) -> 2020 | F53: =LEFT(dms_MultiYear_FinalYear_Result,2)&RIGHT(dms_MultiYear_FinalYear_Result,2) | H53: Formula errors are OK | N53: Reconductor - Single circuit | O53: Number | P53: net circuit km added | Q53: net circuit km added | R53: net circuit km added | S53: net circuit km added | Z53: Years | AJ53: Zone substation | AK53: Third party
B54: RFM | C54: ROLL FORWARD MODEL | E54: =LEFT(dms_CRCP_FinalYear_Result,2)&RIGHT(dms_CRCP_FinalYear_Result,2) -> 2016 | F54: =LEFT(dms_CRCP_FinalYear_Result,2)&RIGHT(dms_CRCP_FinalYear_Result,2) | N54: Reconductor - Dual circuit | O54: Number | P54: total spend $0s | Q54: total spend $0s | R54: total spend $0s | S54: total spend $0s | Z54: Years | AJ54: Subtransmission | AK54: Unknown
B55: WACC | C55: WEIGHTED AVERAGE COST OF CAPITAL | E55: =LEFT(dms_MultiYear_FinalYear_Result,2)&RIGHT(dms_MultiYear_FinalYear_Result,2) -> 2020 | F55: =LEFT(dms_MultiYear_FinalYear_Result,2)&RIGHT(dms_MultiYear_FinalYear_Result,2) | N55: Other | P55: net circuit km added | Q55: net circuit km added | R55: net circuit km added | S55: net circuit km added | Z55: Trees | AI55: Other | AJ55: insert description of 'other' | AK55: Vegetation
P56: total spend $0s | Q56: total spend $0s | R56: total spend $0s | S56: total spend $0s | Z56: Trees | AI56: Overloads | AJ56: Network error | AK56: Weather
P57: 0's | R57: $0s | Z57: Defects | AI57: Planned | AJ57: Switching and protection error | AK57: 2 - STPIS Exclusion (3.3)(a)
P58: 0's | Z58: Defects | AI58: Network business | AJ58: Fire | AK58: 3 - STPIS Exclusion (3.3)(a)
P59: 0's | Z59: Spans | AJ59: Other | AK59: 4 - STPIS Exclusion (3.3)(a)
P60: $0s | Z60: km | AI60: Third party | AJ60: Dig-in | AK60: 5 - STPIS Exclusion (3.3)(a)
Z61: Spans | AJ61: Unauthorised access | AK61: 6 - STPIS Exclusion (3.3)(a)
AJ62: Vehicle impact | AK62: 7 - STPIS Exclusion (3.3)(a)
AJ63: Unknown
B64: For all files either AER or business needs to be able to specify the type of submission | C64: For PTRM & RFM templates we must provide a choice in case they change their form of control - otherwise it is drawn from the business specific lookup table above. | E64: These are indeces and lookup values for various dates. All step from the value placed in FRCP_y1 on the business and other details worksheet | W64: for TNSP only | AJ64: Blow-in/Fall-in - NSP responsibility
B65: dms_SourceList | C65: dms_FormControl_Choices | E65: dms_FRCPlength_Num_List | F65: dms_FinalYear_List | G65: dms_CRCPlength_Num_List | H65: dms_CFinalYear_List | I65: dms_FRCP_years | K65: dms_CRCP_years | M65: dms_CRCP_index | W65: dms_030601_01_UOM | Y65: dms_030701_01_UOM | Z65: dms_030702_01_UOM | AI65: Unknown | AJ65: Grow-in - NSP responsibility
B66: After appeal | C66: Revenue cap | E66: 1 | F66: dms_FRCP_y1 | G66: 1 | H66: CRCP_y1 | I66: =FRCP_y1 -> 2015-16 | J66: dms_FRCP_y1 | K66: =IF(dms_RPT="financial",VALUE(LEFT(dms_FRCP_y1,4)-1)&"-"&TEXT(VALUE(MID(dms_FRCP_y1,3,2)),"00"),VALUE(LEFT(dms_FRCP_y1,4)-1)) -> 2014-15 | L66: dms_CRCP_yZ | M66: 1 | W66: % | Y66: Number of spans | Z66: km | AI66: Vegetation | AJ66: Blow-in/Fall-in - Other responsible party
B67: Draft decision | C67: Revenue yield | E67: 2 | F67: dms_FRCP_y2 | G67: 2 | H67: CRCP_y2 | I67: =IF(dms_RPT="financial",VALUE(LEFT(dms_FRCP_y1,4)+1)&"-"&TEXT(VALUE(RIGHT(dms_FRCP_y1,2)+1),"00"),VALUE(LEFT(dms_FRCP_y1,4)+1)) -> 2016-17 | J67: dms_FRCP_y2 | K67: =IF(dms_RPT="financial",VALUE(LEFT(dms_CRCP_yZ,4)-1)&"-"&TEXT(VALUE(MID(dms_CRCP_yZ,3,2)),"00"),VALUE(LEFT(dms_CRCP_yZ,4)-1)) -> 2013-14 | L67: dms_CRCP_yY | M67: 2 | W67: number | Y67: Years | Z67: % | AJ67: Grow-in - Other responsible party
B68: Final decision | C68: Weighted average price cap | E68: 3 | F68: dms_FRCP_y3 | G68: 3 | H68: CRCP_y3 | I68: =IF(dms_RPT="financial",VALUE(LEFT(dms_FRCP_y2,4)+1)&"-"&TEXT(VALUE(RIGHT(dms_FRCP_y2,2)+1),"00"),VALUE(LEFT(dms_FRCP_y2,4)+1)) -> 2017-18 | J68: dms_FRCP_y3 | K68: =IF(dms_RPT="financial",VALUE(LEFT(dms_CRCP_yY,4)-1)&"-"&TEXT(VALUE(MID(dms_CRCP_yY,3,2)),"00"),VALUE(LEFT(dms_CRCP_yY,4)-1)) -> 2012-13 | L68: dms_CRCP_yX | M68: 3 | W68: number | Y68: Trees | Z68: km
B69: PTRM update 1 | E69: 4 | F69: dms_FRCP_y4 | G69: 4 | H69: CRCP_y4 | I69: =IF(dms_RPT="financial",VALUE(LEFT(dms_FRCP_y3,4)+1)&"-"&TEXT(VALUE(RIGHT(dms_FRCP_y3,2)+1),"00"),VALUE(LEFT(dms_FRCP_y3,4)+1)) -> 2018-19 | J69: dms_FRCP_y4 | K69: =IF(dms_RPT="financial",VALUE(LEFT(dms_CRCP_yX,4)-1)&"-"&TEXT(VALUE(MID(dms_CRCP_yX,3,2)),"00"),VALUE(LEFT(dms_CRCP_yX,4)-1)) -> 2011-12 | L69: dms_CRCP_yW | M69: 4 | W69: % | Y69: Defects | Z69: number
B70: PTRM update 2 | E70: 5 | F70: dms_FRCP_y5 | G70: 5 | H70: CRCP_y5 | I70: =IF(dms_RPT="financial",VALUE(LEFT(dms_FRCP_y4,4)+1)&"-"&TEXT(VALUE(RIGHT(dms_FRCP_y4,2)+1),"00"),VALUE(LEFT(dms_FRCP_y4,4)+1)) -> 2019-20 | J70: dms_FRCP_y5 | K70: =IF(dms_RPT="financial",VALUE(LEFT(dms_CRCP_yW,4)-1)&"-"&TEXT(VALUE(MID(dms_CRCP_yW,3,2)),"00"),VALUE(LEFT(dms_CRCP_yW,4)-1)) -> 2010-11 | L70: dms_CRCP_yV | M70: 5 | W70: number | Y70: Number of spans | AI70: Weather
B71: PTRM update 3 | E71: 6 | F71: dms_FRCP_y6 | G71: 6 | H71: CRCP_y6 | I71: =IF(dms_RPT="financial",VALUE(LEFT(dms_FRCP_y5,4)+1)&"-"&TEXT(VALUE(RIGHT(dms_FRCP_y5,2)+1),"00"),VALUE(LEFT(dms_FRCP_y5,4)+1)) -> 2020-21 | J71: dms_FRCP_y6 | K71: =IF(dms_RPT="financial",VALUE(LEFT(dms_CRCP_yV,4)-1)&"-"&TEXT(VALUE(MID(dms_CRCP_yV,3,2)),"00"),VALUE(LEFT(dms_CRCP_yV,4)-1)) -> 2009-10 | L71: dms_CRCP_yU | M71: 6 | W71: number | Y71: km | AI71: 2 - STPIS Exclusion (3.3)(a)
B72: PTRM update 4 | E72: 7 | F72: dms_FRCP_y7 | G72: 7 | H72: CRCP_y7 | I72: =IF(dms_RPT="financial",VALUE(LEFT(dms_FRCP_y6,4)+1)&"-"&TEXT(VALUE(RIGHT(dms_FRCP_y6,2)+1),"00"),VALUE(LEFT(dms_FRCP_y6,4)+1)) -> 2021-22 | J72: dms_FRCP_y7 | K72: =IF(dms_RPT="financial",VALUE(LEFT(dms_CRCP_yU,4)-1)&"-"&TEXT(VALUE(MID(dms_CRCP_yU,3,2)),"00"),VALUE(LEFT(dms_CRCP_yU,4)-1)) -> 2008-09 | L72: dms_CRCP_yT | M72: 7 | W72: % | Y72: km | AI72: 3 - STPIS Exclusion (3.3)(a)
B73: PTRM update 5 | E73: 8 | F73: dms_FRCP_y8 | G73: 8 | H73: CRCP_y8 | I73: =IF(dms_RPT="financial",VALUE(LEFT(dms_FRCP_y7,4)+1)&"-"&TEXT(VALUE(RIGHT(dms_FRCP_y7,2)+1),"00"),VALUE(LEFT(dms_FRCP_y7,4)+1)) -> 2022-23 | J73: dms_FRCP_y8 | K73: =IF(dms_RPT="financial",VALUE(LEFT(dms_CRCP_yT,4)-1)&"-"&TEXT(VALUE(MID(dms_CRCP_yT,3,2)),"00"),VALUE(LEFT(dms_CRCP_yT,4)-1)) -> 2007-08 | L73: dms_CRCP_yS | M73: 8 | W73: number | Y73: Number of spans | AI73: 4 - STPIS Exclusion (3.3)(a)
B74: PTRM update 6 | E74: 9 | F74: dms_FRCP_y9 | G74: 9 | H74: CRCP_y9 | I74: =IF(dms_RPT="financial",VALUE(LEFT(dms_FRCP_y8,4)+1)&"-"&TEXT(VALUE(RIGHT(dms_FRCP_y8,2)+1),"00"),VALUE(LEFT(dms_FRCP_y8,4)+1)) -> 2023-24 | J74: dms_FRCP_y9 | K74: =IF(dms_RPT="financial",VALUE(LEFT(dms_CRCP_yS,4)-1)&"-"&TEXT(VALUE(MID(dms_CRCP_yS,3,2)),"00"),VALUE(LEFT(dms_CRCP_yS,4)-1)) -> 2006-07 | L74: dms_CRCP_yR | M74: 9 | W74: number | AI74: 5 - STPIS Exclusion (3.3)(a)
B75: PTRM update 7 | E75: 10 | F75: dms_FRCP_y10 | G75: 10 | H75: CRCP_y10 | I75: =IF(dms_RPT="financial",VALUE(LEFT(dms_FRCP_y9,4)+1)&"-"&TEXT(VALUE(RIGHT(dms_FRCP_y9,2)+1),"00"),VALUE(LEFT(dms_FRCP_y9,4)+1)) -> 2024-25 | J75: dms_FRCP_y10 | K75: =IF(dms_RPT="financial",VALUE(LEFT(dms_CRCP_yR,4)-1)&"-"&TEXT(VALUE(MID(dms_CRCP_yR,3,2)),"00"),VALUE(LEFT(dms_CRCP_yR,4)-1)) -> 2005-06 | L75: dms_CRCP_yQ | M75: 10 | W75: % | AI75: 6 - STPIS Exclusion (3.3)(a)
B76: Regulatory proposal | E76: 11 | F76: dms_FRCP_y11 | G76: 11 | H76: CRCP_y11 | I76: =IF(dms_RPT="financial",VALUE(LEFT(dms_FRCP_y10,4)+1)&"-"&TEXT(VALUE(RIGHT(dms_FRCP_y10,2)+1),"00"),VALUE(LEFT(dms_FRCP_y10,4)+1)) -> 2025-26 | J76: dms_FRCP_y11 | K76: =IF(dms_RPT="financial",VALUE(LEFT(dms_CRCP_yQ,4)-1)&"-"&TEXT(VALUE(MID(dms_CRCP_yQ,3,2)),"00"),VALUE(LEFT(dms_CRCP_yQ,4)-1)) -> 2004-05 | L76: dms_CRCP_yP | M76: 11 | W76: number | AI76: 7 - STPIS Exclusion (3.3)(a)
B77: Reporting | E77: 12 | F77: dms_FRCP_y12 | G77: 12 | H77: CRCP_y12 | I77: =IF(dms_RPT="financial",VALUE(LEFT(dms_FRCP_y11,4)+1)&"-"&TEXT(VALUE(RIGHT(dms_FRCP_y11,2)+1),"00"),VALUE(LEFT(dms_FRCP_y11,4)+1)) -> 2026-27 | J77: dms_FRCP_y12 | K77: =IF(dms_RPT="financial",VALUE(LEFT(dms_CRCP_yP,4)-1)&"-"&TEXT(VALUE(MID(dms_CRCP_yP,3,2)),"00"),VALUE(LEFT(dms_CRCP_yP,4)-1)) -> 2003-04 | L77: dms_CRCP_yO | M77: 12 | W77: %
B78: Revised regulatory proposal | E78: 13 | F78: dms_FRCP_y13 | G78: 13 | H78: CRCP_y13 | I78: =IF(dms_RPT="financial",VALUE(LEFT(dms_FRCP_y12,4)+1)&"-"&TEXT(VALUE(RIGHT(dms_FRCP_y12,2)+1),"00"),VALUE(LEFT(dms_FRCP_y12,4)+1)) -> 2027-28 | J78: dms_FRCP_y13 | K78: =IF(dms_RPT="financial",VALUE(LEFT(dms_CRCP_yO,4)-1)&"-"&TEXT(VALUE(MID(dms_CRCP_yO,3,2)),"00"),VALUE(LEFT(dms_CRCP_yO,4)-1)) -> 2002-03 | L78: dms_CRCP_yN | M78: 13 | W78: number
E79: 14 | F79: dms_FRCP_y14 | G79: 14 | H79: CRCP_y14 | I79: =IF(dms_RPT="financial",VALUE(LEFT(dms_FRCP_y13,4)+1)&"-"&TEXT(VALUE(RIGHT(dms_FRCP_y13,2)+1),"00"),VALUE(LEFT(dms_FRCP_y13,4)+1)) -> 2028-29 | J79: dms_FRCP_y14 | K79: =IF(dms_RPT="financial",VALUE(LEFT(dms_CRCP_yN,4)-1)&"-"&TEXT(VALUE(MID(dms_CRCP_yN,3,2)),"00"),VALUE(LEFT(dms_CRCP_yN,4)-1)) -> 2001-02 | L79: dms_CRCP_yM | M79: 14 | W79: %
E80: 15 | F80: dms_FRCP_y15 | G80: 15 | H80: CRCP_y15 | I80: =IF(dms_RPT="financial",VALUE(LEFT(dms_FRCP_y14,4)+1)&"-"&TEXT(VALUE(RIGHT(dms_FRCP_y14,2)+1),"00"),VALUE(LEFT(dms_FRCP_y14,4)+1)) -> 2029-30 | J80: dms_FRCP_y15 | K80: =IF(dms_RPT="financial",VALUE(LEFT(dms_CRCP_yM,4)-1)&"-"&TEXT(VALUE(MID(dms_CRCP_yM,3,2)),"00"),VALUE(LEFT(dms_CRCP_yM,4)-1)) -> 2000-01 | L80: dms_CRCP_yL | M80: 15 | W80: number
E82: These are drop down lists for businesses to select the correct FRCP_y1 on the business and other details worksheet. This also populates the column headings in the worksheets
B83: dms_DataQuality_List | E83: dms_RCP_fyear_list | F83: dms_CRY_ListF | G83: dms_CRY_ListC | H83: dms_RCP_cyear_list | I83: dms_FRCP_fyear_list | J83: dms_FRCP_ListF | K83: dms_FRCP_ListC | L83: dms_FRCP_cyear_list
B84: Actual | E84: dms_fy1 | F84: 2006-07 | G84: 2007 | H84: dms_cy1 | I84: dms_frcp_fy1 | J84: 2016-17 | K84: 2017 | L84: dms_crcp_cy1
B85: Estimate | E85: dms_fy2 | F85: 2007-08 | G85: 2008 | H85: dms_cy2 | I85: dms_frcp_fy2 | J85: 2017-18 | K85: 2018 | L85: dms_crcp_cy2
B86: Consolidated | E86: dms_fy3 | F86: 2008-09 | G86: 2009 | H86: dms_cy3 | I86: dms_frcp_fy3 | J86: 2018-19 | K86: 2019 | L86: dms_crcp_cy3
B87: Recast | E87: dms_fy4 | F87: 2009-10 | G87: 2010 | H87: dms_cy4 | I87: dms_frcp_fy4 | J87: 2019-20 | K87: 2020 | L87: dms_crcp_cy4
B88: Public | E88: dms_fy5 | F88: 2010-11 | G88: 2011 | H88: dms_cy5 | I88: dms_frcp_fy5 | J88: 2020-21 | K88: 2021 | L88: dms_crcp_cy5
E89: dms_fy6 | F89: 2011-12 | G89: 2012 | H89: dms_cy6 | I89: dms_frcp_fy6 | J89: 2021-22 | K89: 2022 | L89: dms_crcp_cy6
E90: dms_fy7 | F90: 2012-13 | G90: 2013 | H90: dms_cy7 | I90: dms_frcp_fy7 | J90: 2022-23 | K90: 2023 | L90: dms_crcp_cy7
E91: dms_fy8 | F91: 2013-14 | G91: 2014 | H91: dms_cy8 | I91: dms_frcp_fy8 | J91: 2023-24 | K91: 2024 | L91: dms_crcp_cy8
E92: dms_fy9 | F92: 2014-15 | G92: 2015 | H92: dms_cy9 | I92: dms_frcp_fy9 | J92: 2024-25 | K92: 2025 | L92: dms_crcp_cy9
E93: dms_fy10 | F93: 2015-16 | G93: 2016 | H93: dms_cy10 | I93: dms_frcp_fy10 | J93: 2025-26 | K93: 2026 | L93: dms_crcp_cy10
E94: dms_fy11 | F94: 2016-17 | G94: 2017 | H94: dms_cy11 | I94: dms_frcp_fy11 | J94: 2026-27 | K94: 2027 | L94: dms_crcp_cy11
E95: dms_fy12 | F95: 2017-18 | G95: 2018 | H95: dms_cy12 | I95: dms_frcp_fy12 | J95: 2027-28 | K95: 2028 | L95: dms_crcp_cy12
E96: dms_fy13 | F96: 2018-19 | G96: 2019 | H96: dms_cy13 | I96: dms_frcp_fy13 | J96: 2028-29 | K96: 2029 | L96: dms_crcp_cy13
E97: dms_fy14 | F97: 2019-20 | G97: 2020 | H97: dms_cy14 | I97: dms_frcp_fy14 | J97: 2029-30 | K97: 2030 | L97: dms_crcp_cy14
E98: dms_fy15 | F98: 2020-21 | G98: 2021 | H98: dms_cy15 | I98: dms_frcp_fy15 | J98: 2030-31 | K98: 2031 | L98: dms_crcp_cy15

Sheet Instructions
B2: =CONCATENATE(dms_Segment," Network Service Provider") -> Distribution Network Service Provider
B3: Annual Reporting RIN Template
C4: =CONCATENATE("This template is to be used by ",dms_TradingName," to fulfil its reporting obligations to the AER.") -> This template is to be used by SA Power Networks to fulfil its reporting obligations to the AER.
C5: INSTRUCTIONS
C6: Complete the Business & other details worksheet before entering data or values in any other worksheets. The Business & other details worksheet is linked to other worksheets within the workbook and automatically generates certain column headings and conditional formatting.
C8: Identifying CONFIDENTIAL INFORMATION: Please use the macro at the top of each worksheet to identify confidential information.
C9: -Do this by selecting the cell or cells that contain confidential information and then run the Mark selected cells as CONFIDENTIAL macro. This will format the cells a specific colour that is identified by the AER's database which in turn marks that information as confidential. -To reverse this, select the cell or cells and run the Return cells to NON-CONFIDENTIAL macro
C11: UNITS OF MEASURE All amounts are to be unrounded and reported in nominal terms on a one for one basis: that is 1000 is to be entered as '1000'. Applicable units of measure may be identified in the table column headings or row descriptors.
C13: COLOUR CODING OF INPUT / NON-INPUT CELLS:
D14: Yellow = Input cell (mandatory)
D15: Darker yellow = input cell (mandatory)
D16: Orange = input cell (if data available)
D17: Grey = Not applicable/No inputs required
D18: PLEASE DO NOT ENTER TEXT into cells that are to contain numeric data.
C21: WORKSHEET NAVIGATION Many tables in the worksheets have been "grouped" to allow for easy navigation. To ungroup or group data use the outline symbols in the left margin of excel (for Row groupings) or above the columns (for column groupings).
C23: RETURNING COMPLETED RESPONSES Please return four (4) files to the AER: 1. A confidential version which must contain a complete set of all responses with confidential information marked using the Mark selected cells CONFIDENTIAL macro and which has been completed using the locked template file provided by the AER. 2. An actual and an estimate version with confidential information marked using the Mark selected cells CONFIDENTIAL macro and which has been completed using the locked template file provided by the AER. 3. A public version with confidential information either removed completely or aggregated in some form together with writtten consent to disclose the public version of the response. Use the drop down box on the Business and other details worksheet to identify the file as either confidential ('consolidated') or public.
C25: SUBMITTING AMENDED DATA TO THE AER If an NSP wishes to correct data previously submitted to the AER it should resubmit that data using the original completed submission as the starting point. Please make any necessary changes to the data. Data that is not being amended should be left unchanged. NSPs must identify the reason for the amendments in the Amendment Reason box on the Business and other details worksheet. NSPs may provide further details regarding any amendments in the Amendments worksheet. .
C26: NSP may use Amended Data macro to highlight cells that contain amended data. NB: if data is also CONFIDENTIAL, re-apply the Confidentiality macro after applying the Amended macro
C27: Please resubmit two (2) files - a confidential version and a public version of the amended submission to the AER

Sheet Contents
B1: REGULATORY REPORTING STATEMENT
B2: =dms_TradingName -> SA Power Networks
B3: =CONCATENATE("Benchmarking RIN response ",CRY) -> Benchmarking RIN response 2015-16
B5: CONTENTS
B12: 3. ECONOMIC BENCHMARKING

Sheet Business & other details
B1: REGULATORY REPORTING STATEMENT
B2: =dms_TradingName -> SA Power Networks
B3: =CONCATENATE("Benchmarking RIN response ",CRY) -> Benchmarking RIN response 2015-16
B4: BUSINESS & OTHER DETAILS
B7: Instructions
B8: Complete the following business details regulatory template before entering data or values in any other regulatory template. This regulatory template is linked to other cells within the spreadsheet and automatically generates column headings.
B10: SUBMISSION PARTICULARS INPUT SHEETS
B12: ENTITY DETAILS
B14: Short name | C14: SA Power Networks
B15: ACN / ABN | C15: =INDEX(dms_ABN_List,MATCH(dms_TradingName,dms_TradingName_List)) -> 13332330749
B18: Business address | C18: Address 1 | E18: =INDEX(dms_Addr1_List,MATCH(dms_TradingName,dms_TradingName_List)) -> 1 Anzac Highway
D19: Address 2 | E19: =IF(ISBLANK(INDEX(dms_Addr2_List,MATCH(dms_TradingName,dms_TradingName_List))),"",INDEX(dms_Addr2_List,MATCH(dms_TradingName,dms_TradingName_List))) -> 
C20: Suburb | E20: =INDEX(dms_Suburb_List,MATCH(dms_TradingName,dms_TradingName_List)) -> KESWICK
D21: State | E21: =INDEX(dms_State_List,MATCH(dms_TradingName,dms_TradingName_List)) -> SA | F21: p/code | G21: =INDEX(dms_PostCode_List,MATCH(dms_TradingName,dms_TradingName_List)) -> 5035
B23: Postal address | C23: Address 1 | E23: =INDEX(dms_PAddr1_List,MATCH(dms_TradingName,dms_TradingName_List)) -> GPO Box 77
D24: Address 2 | E24: =IF(ISBLANK(INDEX(dms_PAddr2_List,MATCH(dms_TradingName,dms_TradingName_List))),"",INDEX(dms_PAddr2_List,MATCH(dms_TradingName,dms_TradingName_List))) -> 
C25: Suburb | E25: =INDEX(dms_PSuburb_List,MATCH(dms_TradingName,dms_TradingName_List)) -> ADELAIDE
D26: State | E26: =INDEX(dms_PState_List,MATCH(dms_TradingName,dms_TradingName_List)) -> SA | F26: p/code | G26: 5035
B29: Contact name/s | C29: Richard Sibly
B30: Contact phone/s
B31: Contact email address/s
B33: REGULATORY CONTROL PERIODS
B35: Forthcoming regulatory control period | C35: 2015-16 | D35: =dms_FRCP_y2 -> 2016-17 | E35: =dms_FRCP_y3 -> 2017-18 | F35: =dms_FRCP_y4 -> 2018-19 | G35: =dms_FRCP_y5 -> 2019-20 | H35: =dms_FRCP_y6 -> 2020-21 | I35: =IF(dms_RPT="financial",VALUE(LEFT(FRCP_y6,4)+1)&"-"&VALUE(MID(FRCP_y6,3,2)+2),VALUE(LEFT(FRCP_y6,4)+1)) -> 2021-22
B38: Current regulatory control period | C38: =dms_CRCP_FirstYear_Result -> 2010-11 | D38: =IF(dms_RPT="financial",VALUE(LEFT(CRCP_y1,4)+1)&"-"&TEXT(VALUE(RIGHT(CRCP_y1,2)+1),"0#"),VALUE(LEFT(CRCP_y1,4)+1)) -> 2011-12 | E38: =IF(dms_RPT="financial",VALUE(LEFT(CRCP_y2,4)+1)&"-"&TEXT(VALUE(RIGHT(CRCP_y2,2)+1),"0#"),VALUE(LEFT(CRCP_y2,4)+1)) -> 2012-13 | F38: =IF(dms_RPT="financial",VALUE(LEFT(CRCP_y3,4)+1)&"-"&TEXT(VALUE(RIGHT(CRCP_y3,2)+1),"0#"),VALUE(LEFT(CRCP_y3,4)+1)) -> 2013-14 | G38: =IF(dms_RPT="financial",VALUE(LEFT(CRCP_y4,4)+1)&"-"&TEXT(VALUE(RIGHT(CRCP_y4,2)+1),"0#"),VALUE(LEFT(CRCP_y4,4)+1)) -> 2014-15 | H38: =IF(dms_RPT="financial",VALUE(LEFT(CRCP_y5,4)+1)&"-"&TEXT(VALUE(RIGHT(CRCP_y5,2)+1),"0#"),VALUE(LEFT(CRCP_y5,4)+1)) -> 2015-16
B41: Previous regulatory control period | C41: =IF(dms_RPT="financial",VALUE(LEFT(PRCP_y2,4)-1)&"-"&TEXT(VALUE(MID(PRCP_y2,3,2)),"0#"),VALUE(LEFT(PRCP_y2,4)-1)) -> 2005-06 | D41: =IF(dms_RPT="financial",VALUE(LEFT(PRCP_y3,4)-1)&"-"&TEXT(VALUE(MID(PRCP_y3,3,2)),"0#"),VALUE(LEFT(PRCP_y3,4)-1)) -> 2006-07 | E41: =IF(dms_RPT="financial",VALUE(LEFT(PRCP_y4,4)-1)&"-"&TEXT(VALUE(MID(PRCP_y4,3,2)),"0#"),VALUE(LEFT(PRCP_y4,4)-1)) -> 2007-08 | F41: =IF(dms_RPT="financial",VALUE(LEFT(PRCP_y5,4)-1)&"-"&TEXT(VALUE(RIGHT(PRCP_y5,2)-1),"0#"),VALUE(LEFT(PRCP_y5,4)-1)) -> 2008-09 | G41: =IF(dms_RPT="financial",VALUE(LEFT(CRCP_y1,4)-1)&"-"&TEXT(VALUE(RIGHT(CRCP_y1,2)-1),"0#"),VALUE(LEFT(CRCP_y1,4)-1)) -> 2009-10
B44: Current regulatory year | C44: 2015-16 | D44: CRY
B50: Source | C50: Reporting | E50: Please select the correct submission type from the dropdown list.
B51: Data quality (actual, estimate, public, consolidated) | C51: Consolidated
B52: Amended RIN submission - amendment reason | C52: 20190705 3.2.3 updated (D19/101543)
B53: Submission Date | C53: 2019-07-05 | D53: dms_SubmissionDate | E53: Please enter date this file submitted to AER (dd/mm/yyyy)
B54: EBSS - First application of scheme in forthcoming period? | C54: No
A55: HIDE THESE ROWS | B55: Sector | C55: =INDEX(dms_Sector_List,MATCH(dms_TradingName,dms_TradingName_List)) -> Electricity | D55: dms_Sector | E55: =INDEX(dms_Sector_List,MATCH(dms_TradingName,dms_TradingName_List))
B56: Segment | C56: =INDEX(dms_Segment_List,MATCH(dms_TradingName,dms_TradingName_List)) -> Distribution | D56: dms_Segment | E56: =INDEX(dms_Segment_List,MATCH(dms_TradingName,dms_TradingName_List))
B57: Regulatory Year Ending | C57: =IF(dms_MultiYear_Flag=1,LEFT(dms_Specified_FinalYear,2)&RIGHT(dms_Specified_FinalYear,2),INDEX(dms_RYE_Formula_Result,MATCH(dms_Model,dms_Model_List))) -> 2016 | D57: dms_RYE | E57: =IF(dms_MultiYear_Flag=1,LEFT(dms_Specified_FinalYear,2)&RIGHT(dms_Specified_FinalYear,2),INDEX(dms_RYE_Formula_Result,MATCH(dms_Model,dms_Model_List)))
B58: Reporting Period Type | C58: =INDEX(dms_RPT_List,MATCH(dms_TradingName,dms_TradingName_List)) -> Financial | D58: dms_RPT | E58: =INDEX(dms_RPT_List,MATCH(dms_TradingName,dms_TradingName_List))
B59: Model or RIN Type | C59: EB | D59: dms_Model | E59: Drop down selection
B60: Security Classification | C60: Public | D60: dms_Classification | E60: Always Public
B61: Template - version no. | C61: 5 | D61: dms_TemplateNumber
B62: Dollar $ real month | C62: =INDEX(dms_RPTMonth_List,MATCH(dms_TradingName,dms_TradingName_List)) -> June | D62: dms_RPTMonth | E62: =INDEX(dms_RPTMonth_List,MATCH(dms_TradingName,dms_TradingName_List))
B63: Dollar $ real (the last month before the FRCP_y1) | C63: =IF(SUM(dms_SingleYear_Model)>0,CONCATENATE(dms_RPTMonth)&" "&VALUE((LEFT(CRY,2))&RIGHT(CRY,2)),CONCATENATE(dms_RPTMonth)&" "&VALUE((LEFT(dms_CRCP_FinalYear_Result,2))&RIGHT(dms_CRCP_FinalYear_Result,2))) -> June 2016 | D63: dms_DollarReal | E63: =IF(SUM(dms_SingleYear_Model)>0,CONCATENATE(dms_RPTMonth)&" "&VALUE((LEFT(CRY,2))&RIGHT(CRY,2)),CONCATENATE(dms_RPTMonth)&" "&VALUE((LEFT(dms_CRCP_FinalYear_Result,2))&RIGHT(dms_CRCP_FinalYear_Result,2)))
B64: Form of control | C64: =INDEX(dms_FormControl_List,MATCH(dms_TradingName,dms_TradingName_List)) -> Revenue cap | D64: dms_FormControl | E64: =INDEX(dms_FormControl_List,MATCH(dms_TradingName,dms_TradingName_List))
B65: RIN response - version no. | C65: 1 | D65: dms_RINversion
B66: Jurisdiction | C66: =INDEX(dms_JurisdictionList,MATCH(dms_TradingName,dms_TradingName_List)) -> SA | D66: dms_Jurisdiction | E66: =INDEX(dms_JurisdictionList,MATCH(dms_TradingName,dms_TradingName_List))
B67: Backcast Multiyear EB, CA or ARR? | C67: 0 | D67: dms_MultiYear_Flag | E67: 1=y, 0-n
C68: 2013 | D68: dms_Specified_FinalYear | E68: The result here is returned to dms_CRCP_FinalYear_Result if dms_MultiYear_Flag is set to 1
B69: Single Year Model T/F | C69: =IF(dms_Model="EB",1,0) -> 1 | D69: dms_EB
C70: =IF(dms_Model="CA",1,0) -> 0 | D70: dms_CA | E70: =dms_SingleYear_Model
C71: =IF(dms_Model="ARR",1,0) -> 0 | D71: dms_ARR
B72: Single Year Final Year Reference | C72: CRY | D72: dms_SingleYear_FinalYear_Ref | E72: This is the reference for EB, CA & ARR RINs
B73: Single Year Final Year Result | C73: =INDIRECT(dms_SingleYear_FinalYear_Ref) -> 2015-16 | D73: dms_SingleYear_FinalYear_Result | E73: =INDIRECT(dms_SingleYear_FinalYear_Ref) | I73: Formula errors OK
B74: FRCP length in years | C74: =INDEX(dms_FRCPlength_List,MATCH(dms_TradingName,dms_TradingName_List)) -> 5 | D74: dms_FRCPlength_Num | E74: =INDEX(dms_FRCPlength_List,MATCH(dms_TradingName,dms_TradingName_List))
B75: Multi Year Final Year Reference | C75: =INDEX(dms_FinalYear_List,MATCH(dms_FRCPlength_Num,dms_FRCPlength_Num_List)) -> dms_FRCP_y5 | D75: dms_MultiYear_FinalYear_Ref | E75: =INDEX(dms_FinalYear_List,MATCH(dms_FRCPlength_Num,dms_FRCPlength_Num_List))
B76: Multi Year Final Year Result | C76: =IF(dms_MultiYear_Flag=0,INDIRECT(dms_MultiYear_FinalYear_Ref),dms_Specified_FinalYear) -> 2019-20 | D76: dms_MultiYear_FinalYear_Result | E76: =IF(dms_MultiYear_Flag=0,INDIRECT(dms_MultiYear_FinalYear_Ref),dms_Specified_FinalYear) | I76: Formula errors OK
B77: CRCP length in years | C77: =INDEX(dms_CRCPlength_List,MATCH(dms_TradingName,dms_TradingName_List)) -> 5 | D77: dms_CRCPlength_Num | E77: =INDEX(dms_CRCPlength_List,MATCH(dms_TradingName,dms_TradingName_List))
B78: CRCP Final Year Reference | C78: =INDEX(dms_CFinalYear_List,MATCH(dms_CRCPlength_Num,dms_CRCPlength_Num_List)) -> CRCP_y5 | D78: dms_CRCP_FinalYear_Ref | E78: =INDEX(dms_CFinalYear_List,MATCH(dms_CRCPlength_Num,dms_CRCPlength_Num_List))
B79: CRCP First Year Result | C79: =INDEX(dms_CRCP_years,MATCH(dms_CRCPlength_Num,dms_CRCP_index)) -> 2010-11 | D79: dms_CRCP_FirstYear_Result | E79: =INDEX(dms_CRCP_years,MATCH(dms_CRCPlength_Num,dms_CRCP_index))
B80: CRCP Final Year Result | C80: =IF(dms_MultiYear_Flag=0,(IF(SUM(dms_SingleYear_Model)>0,CRY,dms_CRCP_yZ)),dms_Specified_FinalYear) -> 2015-16 | D80: dms_CRCP_FinalYear_Result | E80: =IF(dms_MultiYear_Flag=0,(IF(SUM(dms_SingleYear_Model)>0,CRY,dms_CRCP_yZ)),dms_Specified_FinalYear)
B81: Table 6.6.3 - Public lighting repair - no. business days | C81: =INDEX(dms_663_List,MATCH(dms_TradingName,dms_TradingName_List)) -> 5 | D81: dms_663
B82: Distribution Determination Reference | C82: =INDEX(dms_DeterminationRef_List,MATCH(dms_TradingName,dms_TradingName_List)) -> 2015-20 Distribution Determination
B83: Backcast templates only - unit of measure | C83: $0s | D83: dms_Backcast_UOM | E83: If the cover sheet is for Backcast data ensure to apply dms_Backcast_UOM named range to this field. Otherwise, do not apply this named range.
B84: EB/CA Unit of Measure for Monetary Values | C84: $0s | D84: dms_dollar_nom_UOM | E84: If the cover sheet is attached to an EB files make sure this field is set
B86: discard this record? | C86: NO | D86: dms_DISCARD | E86: If record is to be discarded from DB set this flag to YES
B88: USES NAMED RANGES FLAG | C88: yes | D88: dms_Defined_Names_Used

Sheet 3.1 Revenue
B1: REGULATORY REPORTING STATEMENT
B2: =dms_TradingName -> SA Power Networks
B3: =CONCATENATE("Benchmarking RIN response ",CRY) -> Benchmarking RIN response 2015-16
B4: 3.1 REVENUE
B6: There are THREE tables on this worksheet. Each table has been grouped for ease of navigation. See the Instructions sheet on how to group or ungroup tables.
B8: 3.1.1 - REVENUE GROUPING BY CHARGEABLE QUANTITY
C9: Standard control services | D9: Alternative control services
C10: REVENUE ($0's)
C11: =CRY -> 2015-16 | D11: =CRY -> 2015-16
A12: DREV0101 | B12: Revenue from Fixed Customer Charges | C12: 80077619 | D12: 0
A13: DREV0102 | B13: Revenue from Energy Delivery charges where time of use is not a determinant | C13: 413907812 | D13: 0
A14: DREV0103 | B14: Revenue from On–Peak Energy Delivery charges | C14: 32583593 | D14: 0
A15: DREV0104 | B15: Revenue from Shoulder period Energy Delivery Charges | C15: 0 | D15: 0
A16: DREV0105 | B16: Revenue from Off–Peak Energy Delivery charges | C16: 28386840 | D16: 0
A17: DREV0106 | B17: Revenue from controlled load customer charges | C17: 16549671 | D17: 0
A18: DREV0107 | B18: Revenue from unmetered supplies | C18: 5157246 | D18: 0
A19: DREV0108 | B19: Revenue from Contracted Maximum Demand charges | C19: 123495566 | D19: 0
A20: DREV0109 | B20: Revenue from Measured Maximum Demand charges | C20: 16916040 | D20: 0
A21: DREV0110 | B21: Revenue from metering charges | C21: 0 | D21: 17816089.33
A22: DREV0111 | B22: Revenue from connection charges | C22: 0 | D22: 0
A23: DREV0112 | B23: Revenue from public lighting charges | C23: 0 | D23: 0
A24: DREV0113 | B24: Revenue from other Sources | C24: -38062705.54 | D24: 0
A25: DREV01 | B25: Total revenue by chargeable quantity | C25: =SUM(C12:C24) -> 679011681.5 | D25: =SUM(D12:D24) -> 17816089.33
B28: 3.1.2 - REVENUE GROUPING BY CUSTOMER TYPE OR CLASS
C29: Standard control services | D29: Alternative control services
C30: REVENUE ($0's)
C31: =CRY -> 2015-16 | D31: =CRY -> 2015-16
A32: DREV0201 | B32: Revenue from residential Customers | C32: 365534674 | D32: 15823960.71
A33: DREV0202 | B33: Revenue from Non residential customers not on demand tariffs | C33: 120676612 | D33: 1992128.619
A34: DREV0203 | B34: Revenue from Non-residential low voltage demand tariff customers | C34: 184240406 | D34: 0
A35: DREV0204 | B35: Revenue from Non-residential high voltage demand tariff customers | C35: 41465449 | D35: 0
A36: DREV0205 | B36: Revenue from unmetered supplies | C36: 5157246 | D36: 0
A37: DREV0206 | B37: Revenue from Other Customers | C37: -38062705.54 | D37: 0
A38: DREV02 | B38: Total revenue by customer class | C38: =SUM(C32:C37) -> 679011681.5 | D38: =SUM(D32:D37) -> 17816089.33
B40: 3.1.3 - REVENUE (penalties) ALLOWED (deducted) THROUGH INCENTIVE SCHEMES
C41: Standard control services | D41: Alternative control services
C42: REVENUE ($0's)
C43: =CRY -> 2015-16 | D43: =CRY -> 2015-16
A44: DREV0301 | B44: EBSS | C44: 101717.5573
A45: DREV0302 | B45: STPIS | C45: 0
A46: DREV0303 | B46: F-Factor
A47: DREV0304 | B47: S-Factor True up
A48: DREV0305 | B48: Other
A49: DREV03 | B49: Total revenue of incentive schemes | C49: =SUM(C44:C48) -> 101717.5573 | D49: =SUM(D44:D48) -> 0

Sheet 3.2 Operating expenditure
B1: REGULATORY REPORTING STATEMENT
B2: =dms_TradingName -> SA Power Networks
B3: =CONCATENATE("Benchmarking RIN response ",CRY) -> Benchmarking RIN response 2015-16
B4: 3.2 OPERATING EXPENDITURE
B6: There are THREE tables on this worksheet. Each table has been grouped for ease of navigation. See the Instructions sheet on how to group or ungroup tables.
B8: Instructions
B9: =CONCATENATE("In table 3.2.1, please list each opex category reported in response to ",dms_TradingName, "'s annual reporting RIN and report opex for each category.") -> In table 3.2.1, please list each opex category reported in response to SA Power Networks's annual reporting RIN and report opex for each category.
B12: 3.2.1 - OPEX CATEGORIES
B13: CURRENT OPEX CATEGORIES AND COST ALLOCATIONS
C14: Standard control services | D14: Alternative control services
C15: EXPENDITURE ($0's)
C16: =CRY -> 2015-16 | D16: =CRY -> 2015-16
A17: DOPEX0101 | B17: Distribution licence fee | C17: 2558186.82 | D17: 0
A18: DOPEX0102 | B18: Network operating costs | C18: 26327893.28 | D18: 0
A19: DOPEX0103 | B19: Inspections | C19: 13641343.41 | D19: 0
A20: DOPEX0104 | B20: Maintenance & repair | C20: 14396779.89 | D20: 2726925.52
A21: DOPEX0105 | B21: Substation property maintenance | C21: 6786534.672 | D21: 0
A22: DOPEX0106 | B22: Vegetation management | C22: 32029751.13 | D22: 0
A23: DOPEX0107 | B23: Emergency response | C23: 34747494.26 | D23: 0
A24: DOPEX0108 | B24: Guaranteed service level payments | C24: 3389550 | D24: 0
A25: DOPEX0109 | B25: Network insurance | C25: 1641531.188 | D25: 0
A26: DOPEX0110 | B26: Call centre | C26: 3210252.2 | D26: 0
A27: DOPEX0111 | B27: Full retail contestability | C27: 15865522.39 | D27: 2328232.109
A28: DOPEX0112 | B28: Meter reading | C28: 0 | D28: 3562050.05
A29: DOPEX0113 | B29: Other customer services | C29: 6946344.621 | D29: 127291.2866
A30: DOPEX0114 | B30: Corporate costs and other operating | C30: 52874705.79 | D30: 1080225.098
A31: DOPEX0115
A32: DOPEX0116
A33: DOPEX0117
A34: DOPEX0118
A35: DOPEX0119
A36: DOPEX0120
A37: DOPEX0121
A38: DOPEX0122
A39: DOPEX0123
A40: DOPEX0124
A41: DOPEX0125
A42: DOPEX0126
A43: DOPEX0127
A44: DOPEX0128
A45: DOPEX0129
A46: DOPEX0130
A47: DOPEX0131
A48: DOPEX0132
A49: DOPEX0133
A50: DOPEX0134
A51: DOPEX0135
A52: DOPEX0136
A53: DOPEX0137
A54: DOPEX0138
A55: DOPEX0139
A56: DOPEX0140
A57: DOPEX0141
A58: DOPEX0142
A59: DOPEX01 | B59: Total opex | C59: =SUM(C17:C58) -> 214415889.6 | D59: =SUM(D17:D58) -> 9824724.063
B63: 3.2.2 - OPEX CONSISTENCY
B64: CURRENT COST ALLOCATION APPROACH
C65: Standard control services | D65: Alternative control services
C66: EXPENDITURE ($0's)
C67: =CRY -> 2015-16 | D67: =CRY -> 2015-16
A68: DOPEX0201 | B68: Opex for network services | C68: 211867163.1 | D68: 0
A69: DOPEX0202 | B69: Opex for metering | C69: 0 | D69: 9776210.176
A70: DOPEX0203 | B70: Opex for connection services | C70: 2548726.555 | D70: 48513.88738
A71: DOPEX0204 | B71: Opex for public lighting | C71: 0 | D71: 0
A72: DOPEX0205 | B72: Opex for amounts payable for easement levy or similar direct charges on DNSP | C72: 0 | D72: 0
A73: DOPEX0206 | B73: Opex for transmission connection point planning | C73: 0 | D73: 0
B77: 3.2.4 - OPEX FOR HIGH VOLTAGE CUSTOMERS
C78: End user costs (not standard control services)
A79: DOPEX0401 | B79: Opex for high voltage customers | C79: 1242523.466

Sheet 3.2.3 Provisions
B1: REGULATORY REPORTING STATEMENT
B2: =dms_TradingName -> SA Power Networks
B3: =CONCATENATE("Benchmarking RIN response ",CRY) -> Benchmarking RIN response 2015-16
B4: 3.2 OPERATING EXPENDITURE
B6: The is ONE table on this worksheet. Each Provision has been grouped for ease of navigation. See the Instructions sheet on how to group and ungroup tables.
B8: Instructions
B9: =CONCATENATE("In table 3.2.3, please list each opex category reported in response to ",dms_TradingName, "'s annual reporting RIN and report opex for each category.") -> In table 3.2.3, please list each opex category reported in response to SA Power Networks's annual reporting RIN and report opex for each category.
B11: 3.2.3 - PROVISIONS
C12: VALUE ($0's)
C13: =CRY -> 2015-16
A14: DOPEX03A | B14: Annual Leave
B15: Provision for employee annual leave entitlements
A16: DOPEX0301A | B16: Opening balance (the carrying amount at the beginning of the period) | C16: 16426931.03
B17: Additional provisions made in the period, including increases to existing provisions
A18: DOPEX0302A | B18: Opex component | C18: 7616750.815
A19: DOPEX0303A | B19: Capex component | C19: 3879906.307
A20: DOPEX0304A | B20: Other component | C20: 0
B21: Amounts used (that is, incurred and charged against the provision) during the period
A22: DOPEX0305A | B22: Opex component | C22: -6872537.618
A23: DOPEX0306A | B23: Capex component | C23: -5516424.789
A24: DOPEX0307A | B24: Other component | C24: 0
B25: Unused amounts reversed during the period
A26: DOPEX0308A | B26: Opex component | C26: 0
A27: DOPEX0309A | B27: Capex component | C27: 0
A28: DOPEX0310A | B28: Other component | C28: 0
B29: The increase during the period in the discounted amount arising from the passage of time and the effect of any change in the discount rate
A30: DOPEX0311A | B30: Opex component | C30: 123644.4968
A31: DOPEX0312A | B31: Capex component | C31: 0
A32: DOPEX0313A | B32: Other component | C32: 0
A33: DOPEX0314A | B33: Closing balance (carrying amount at the end of the period) | C33: 15658270.24
A34: DOPEX03B | B34: Long Service Leave
B35: Provision for employee long service leave entitlements
A36: DOPEX0301B | B36: Opening balance (the carrying amount at the beginning of the period) | C36: 48279615.93
B37: Additional provisions made in the period, including increases to existing provisions
A38: DOPEX0302B | B38: Opex component | C38: 960723.9482
A39: DOPEX0303B | B39: Capex component | C39: 850302.1811
A40: DOPEX0304B | B40: Other component | C40: 0
B41: Amounts used (that is, incurred and charged against the provision) during the period
A42: DOPEX0305B | B42: Opex component | C42: -1931915.06
A43: DOPEX0306B | B43: Capex component | C43: -1691850.058
A44: DOPEX0307B | B44: Other component | C44: 0
B45: Unused amounts reversed during the period
A46: DOPEX0308B | B46: Opex component | C46: -506976.1242
A47: DOPEX0309B | B47: Capex component | C47: -443977.8968
A48: DOPEX0310B | B48: Other component | C48: 0
B49: The increase during the period in the discounted amount arising from the passage of time and the effect of any change in the discount rate
A50: DOPEX0311B | B50: Opex component | C50: -245347.8839
A51: DOPEX0312B | B51: Capex component | C51: 0
A52: DOPEX0313B | B52: Other component | C52: 0
A53: DOPEX0314B | B53: Closing balance (carrying amount at the end of the period) | C53: 45270575.04
A54: DOPEX03C | B54: Workers Compensation
B55: Provision for potential workers compensation claims
A56: DOPEX0301C | B56: Opening balance (the carrying amount at the beginning of the period) | C56: 1570951.738
B57: Additional provisions made in the period, including increases to existing provisions
A58: DOPEX0302C | B58: Opex component | C58: 684319.6938
A59: DOPEX0303C | B59: Capex component | C59: 0
A60: DOPEX0304C | B60: Other component | C60: 0
B61: Amounts used (that is, incurred and charged against the provision) during the period
A62: DOPEX0305C | B62: Opex component | C62: -494548.6749
A63: DOPEX0306C | B63: Capex component | C63: 0
A64: DOPEX0307C | B64: Other component | C64: 0
B65: Unused amounts reversed during the period
A66: DOPEX0308C | B66: Opex component | C66: -220461.217
A67: DOPEX0309C | B67: Capex component | C67: 0
A68: DOPEX0310C | B68: Other component | C68: 0
B69: The increase during the period in the discounted amount arising from the passage of time and the effect of any change in the discount rate
A70: DOPEX0311C | B70: Opex component | C70: 0
A71: DOPEX0312C | B71: Capex component | C71: 0
A72: DOPEX0313C | B72: Other component | C72: 0
A73: DOPEX0314C | B73: Closing balance (carrying amount at the end of the period) | C73: 1540261.54
A74: DOPEX03D | B74: Self Insurance
B75: Provision for potential claims under SAPNs self insurance policies, including public liability
A76: DOPEX0301D | B76: Opening balance (the carrying amount at the beginning of the period) | C76: 3146555
B77: Additional provisions made in the period, including increases to existing provisions
A78: DOPEX0302D | B78: Opex component | C78: 4145346.58
A79: DOPEX0303D | B79: Capex component | C79: 0
A80: DOPEX0304D | B80: Other component | C80: 0
B81: Amounts used (that is, incurred and charged against the provision) during the period
A82: DOPEX0305D | B82: Opex component | C82: -1930695.04
A83: DOPEX0306D | B83: Capex component | C83: 0
A84: DOPEX0307D | B84: Other component | C84: 0
B85: Unused amounts reversed during the period
A86: DOPEX0308D | B86: Opex component | C86: -731484.71
A87: DOPEX0309D | B87: Capex component | C87: 0
A88: DOPEX0310D | B88: Other component | C88: 0
B89: The increase during the period in the discounted amount arising from the passage of time and the effect of any change in the discount rate
A90: DOPEX0311D | B90: Opex component | C90: 0
A91: DOPEX0312D | B91: Capex component | C91: 0
A92: DOPEX0313D | B92: Other component | C92: 0
A93: DOPEX0314D | B93: Closing balance (carrying amount at the end of the period) | C93: 4629721.83
A94: DOPEX03E | B94: Income Protection Scheme
B95: Provision for potential employee claims under income protection scheme
A96: DOPEX0301E | B96: Opening balance (the carrying amount at the beginning of the period) | C96: -677.8874454
B97: Additional provisions made in the period, including increases to existing provisions
A98: DOPEX0302E | B98: Opex component | C98: 293089.5603
A99: DOPEX0303E | B99: Capex component | C99: 0
A100: DOPEX0304E | B100: Other component | C100: 0
B101: Amounts used (that is, incurred and charged against the provision) during the period
A102: DOPEX0305E | B102: Opex component | C102: -177830.8177
A103: DOPEX0306E | B103: Capex component | C103: 0
A104: DOPEX0307E | B104: Other component | C104: 0
B105: Unused amounts reversed during the period
A106: DOPEX0308E | B106: Opex component | C106: -39835.52255
A107: DOPEX0309E | B107: Capex component | C107: 0
A108: DOPEX0310E | B108: Other component | C108: 0
B109: The increase during the period in the discounted amount arising from the passage of time and the effect of any change in the discount rate
A110: DOPEX0311E | B110: Opex component | C110: 0
A111: DOPEX0312E | B111: Capex component | C111: 0
A112: DOPEX0313E | B112: Other component | C112: 0
A113: DOPEX0314E | B113: Closing balance (carrying amount at the end of the period) | C113: 74745.33266
A114: DOPEX03F | B114: Environmental
B115: Provision for potential environmental claims, e.g. demolition and site restoration
A116: DOPEX0301F | B116: Opening balance (the carrying amount at the beginning of the period) | C116: 1110000
B117: Additional provisions made in the period, including increases to existing provisions
A118: DOPEX0302F | B118: Opex component | C118: 240385.2
A119: DOPEX0303F | B119: Capex component | C119: 0
A120: DOPEX0304F | B120: Other component | C120: 0
B121: Amounts used (that is, incurred and charged against the provision) during the period
A122: DOPEX0305F | B122: Opex component | C122: -112535.13
A123: DOPEX0306F | B123: Capex component | C123: 0
A124: DOPEX0307F | B124: Other component | C124: 0
B125: Unused amounts reversed during the period
A126: DOPEX0308F | B126: Opex component | C126: -394850.07
A127: DOPEX0309F | B127: Capex component | C127: 0
A128: DOPEX0310F | B128: Other component | C128: 0
B129: The increase during the period in the discounted amount arising from the passage of time and the effect of any change in the discount rate
A130: DOPEX0311F | B130: Opex component | C130: 0
A131: DOPEX0312F | B131: Capex component | C131: 0
A132: DOPEX0313F | B132: Other component | C132: 0
A133: DOPEX0314F | B133: Closing balance (carrying amount at the end of the period) | C133: 843000
A134: DOPEX03G | B134: Employee Bonuses
B135: Provision for bonuses paid to employees for the achievement of key business performance measures
A136: DOPEX0301G | B136: Opening balance (the carrying amount at the beginning of the period) | C136: 6454393.247
B137: Additional provisions made in the period, including increases to existing provisions
A138: DOPEX0302G | B138: Opex component | C138: 5125952.173
A139: DOPEX0303G | B139: Capex component | C139: 0
A140: DOPEX0304G | B140: Other component | C140: 0
B141: Amounts used (that is, incurred and charged against the provision) during the period
A142: DOPEX0305G | B142: Opex component | C142: -6258131.611
A143: DOPEX0306G | B143: Capex component | C143: 0
A144: DOPEX0307G | B144: Other component | C144: 0
B145: Unused amounts reversed during the period
A146: DOPEX0308G | B146: Opex component | C146: 0
A147: DOPEX0309G | B147: Capex component | C147: 0
A148: DOPEX0310G | B148: Other component | C148: 0
B149: The increase during the period in the discounted amount arising from the passage of time and the effect of any change in the discount rate
A150: DOPEX0311G | B150: Opex component | C150: 0
A151: DOPEX0312G | B151: Capex component | C151: 0
A152: DOPEX0313G | B152: Other component | C152: 0
A153: DOPEX0314G | B153: Closing balance (carrying amount at the end of the period) | C153: 5322213.809
A154: DOPEX03H | B154: Provision name
B155: Brief description of provision
A156: DOPEX0301H | B156: Opening balance (the carrying amount at the beginning of the period)
B157: Additional provisions made in the period, including increases to existing provisions
A158: DOPEX0302H | B158: Opex component
A159: DOPEX0303H | B159: Capex component
A160: DOPEX0304H | B160: Other component
B161: Amounts used (that is, incurred and charged against the provision) during the period
A162: DOPEX0305H | B162: Opex component
A163: DOPEX0306H | B163: Capex component
A164: DOPEX0307H | B164: Other component
B165: Unused amounts reversed during the period
A166: DOPEX0308H | B166: Opex component
A167: DOPEX0309H | B167: Capex component
A168: DOPEX0310H | B168: Other component
B169: The increase during the period in the discounted amount arising from the passage of time and the effect of any change in the discount rate
A170: DOPEX0311H | B170: Opex component
A171: DOPEX0312H | B171: Capex component
A172: DOPEX0313H | B172: Other component
A173: DOPEX0314H | B173: Closing balance (carrying amount at the end of the period)
A174: DOPEX03I | B174: Provision name
B175: Brief description of provision
A176: DOPEX0301I | B176: Opening balance (the carrying amount at the beginning of the period)
B177: Additional provisions made in the period, including increases to existing provisions
A178: DOPEX0302I | B178: Opex component
A179: DOPEX0303I | B179: Capex component
A180: DOPEX0304I | B180: Other component
B181: Amounts used (that is, incurred and charged against the provision) during the period
A182: DOPEX0305I | B182: Opex component
A183: DOPEX0306I | B183: Capex component
A184: DOPEX0307I | B184: Other component
B185: Unused amounts reversed during the period
A186: DOPEX0308I | B186: Opex component
A187: DOPEX0309I | B187: Capex component
A188: DOPEX0310I | B188: Other component
B189: The increase during the period in the discounted amount arising from the passage of time and the effect of any change in the discount rate
A190: DOPEX0311I | B190: Opex component
A191: DOPEX0312I | B191: Capex component
A192: DOPEX0313I | B192: Other component
A193: DOPEX0314I | B193: Closing balance (carrying amount at the end of the period)
A194: DOPEX03J | B194: Provision name
B195: Brief description of provision
A196: DOPEX0301J | B196: Opening balance (the carrying amount at the beginning of the period)
B197: Additional provisions made in the period, including increases to existing provisions
A198: DOPEX0302J | B198: Opex component
A199: DOPEX0303J | B199: Capex component
A200: DOPEX0304J | B200: Other component
B201: Amounts used (that is, incurred and charged against the provision) during the period
A202: DOPEX0305J | B202: Opex component
A203: DOPEX0306J | B203: Capex component
... 170 more rows

Sheet 3.3 Assets (RAB)
B1: REGULATORY REPORTING STATEMENT
B2: =dms_TradingName -> SA Power Networks
B3: =CONCATENATE("Benchmarking RIN response ",CRY) -> Benchmarking RIN response 2015-16
B4: 3.3 ASSETS
B6: There are FOUR tables on this worksheet. Each table has been grouped (and sub-grouped) for ease of navigation. See the Instructions sheet on how to group or ungroup tables.
B8: 3.3.1 - REGULATORY ASSET BASE VALUES
C9: Network services | D9: Standard control services | E9: Alternative control services
C10: VALUE ($0's)
C11: =CRY -> 2015-16 | D11: =CRY -> 2015-16 | E11: 2015-16
B12: FOR TOTAL ASSET BASE
A13: DRAB0101 | B13: Opening value | C13: 3572345661 | D13: 3761548688 | E13: 75767642.78
A14: DRAB0102 | B14: Inflation addition | C14: 60321033.68 | D14: 63515831.5 | E14: 1279378.584
A15: DRAB0103 | B15: Straight line depreciation | C15: -196888133.7 | D15: -209730602.1 | E15: -8298380.14
A16: DRAB0105 | B16: Actual additions (recognised in RAB) | C16: 236435436.1 | D16: 249782906.1 | E16: 1955864.076
A17: DRAB0106 | B17: Disposals | C17: -2041442.81 | D17: -2041442.81 | E17: 0
A18: DRAB0107 | B18: Closing value | C18: =SUM(C13:C17) -> 3670172554 | D18: =SUM(D13:D17) -> 3863075380 | E18: 70704505.3
B21: 3.3.2 - ASSET VALUE ROLL FORWARD
C22: Network services | D22: Standard control services | E22: Alternative control services
C23: VALUE ($0's)
C24: =CRY -> 2015-16 | D24: =CRY -> 2015-16 | E24: 2015-16
B25: For overhead network assets less than 33kV:
A26: DRAB0201 | B26: Opening value | C26: 537773025.6 | D26: 610004065.1 | E26: 0
A27: DRAB0202 | B27: Inflation addition | C27: 9080595.179 | D27: 10300256.26 | E27: 0
A28: DRAB0203 | B28: Straight line depreciation | C28: -32906168.35 | D28: -37677913.58 | E28: 0
A29: DRAB0205 | B29: Actual additions (recognised in RAB) | C29: -123105586.1 | D29: -113301428.3 | E29: 0
A30: DRAB0206 | B30: Disposals | C30: 0 | D30: 0 | E30: 0
A31: DRAB0207 | B31: Closing value | C31: =SUM(C26:C30) -> 390841866.3 | D31: =SUM(D26:D30) -> 469324979.5 | E31: =SUM(E26:E30) -> 0
B32: For underground network assets less than 33kV:
A33: DRAB0301 | B33: Opening value | C33: ='[3]2015-16 RAB Workings'!C16 -> 858838397.1 | D33: ='[3]2015-16 RAB Workings'!C3 -> 975810384.4 | E33: 0
A34: DRAB0302 | B34: Inflation addition | C34: ='[3]2015-16 RAB Workings'!C20 -> 14501961.68 | D34: ='[3]2015-16 RAB Workings'!C7 -> 16477098.42 | E34: 0
A35: DRAB0303 | B35: Straight line depreciation | C35: ='[3]2015-16 RAB Workings'!C21 -> -60904120 | D35: ='[3]2015-16 RAB Workings'!C8 -> -68974843.19 | E35: 0
A36: DRAB0305 | B36: Actual additions (recognised in RAB) | C36: ='[3]2015-16 RAB Workings'!C18+'[3]2015-16 RAB Workings'!C22 -> -6288729.046 | D36: ='[3]2015-16 RAB Workings'!C5+'[3]2015-16 RAB Workings'!C9 -> -2745416.848 | E36: 0
A37: DRAB0306 | B37: Disposals | C37: ='[3]2015-16 RAB Workings'!C23 -> 0 | D37: ='[3]2015-16 RAB Workings'!C10 -> 0 | E37: 0
A38: DRAB0307 | B38: Closing value | C38: =SUM(C33:C37) -> 806147509.8 | D38: =SUM(D33:D37) -> 920567222.8 | E38: =SUM(E33:E37) -> 0
B39: For distribution substations and transformers:
A40: DRAB0401 | B40: Opening value | C40: ='[3]2015-16 RAB Workings'!D16 -> 945913977 | D40: ='[3]2015-16 RAB Workings'!D3 -> 945913977 | E40: 0
A41: DRAB0402 | B41: Inflation addition | C41: ='[3]2015-16 RAB Workings'!D20 -> 15972281.04 | D41: ='[3]2015-16 RAB Workings'!D7 -> 15972281.04 | E41: 0
A42: DRAB0403 | B42: Straight line depreciation | C42: ='[3]2015-16 RAB Workings'!D21 -> -54299193.83 | D42: ='[3]2015-16 RAB Workings'!D8 -> -54299193.83 | E42: 0
A43: DRAB0405 | B43: Actual additions (recognised in RAB) | C43: ='[3]2015-16 RAB Workings'!D18+'[3]2015-16 RAB Workings'!D22 -> 241514969 | D43: ='[3]2015-16 RAB Workings'!D5+'[3]2015-16 RAB Workings'!D9 -> 241514969 | E43: 0
A44: DRAB0406 | B44: Disposals | C44: ='[3]2015-16 RAB Workings'!D23 -> 0 | D44: ='[3]2015-16 RAB Workings'!D10 -> 0 | E44: 0
A45: DRAB0407 | B45: Closing value | C45: =SUM(C40:C44) -> 1149102033 | D45: =SUM(D40:D44) -> 1149102033 | E45: =SUM(E40:E44) -> 0
B46: For overhead network assets 33kV and above:
A47: DRAB0501 | B47: Opening value | C47: ='[3]2015-16 RAB Workings'!E16 -> 145708010.5 | D47: ='[3]2015-16 RAB Workings'!E3 -> 145708010.5 | E47: 0
A48: DRAB0502 | B48: Inflation addition | C48: ='[3]2015-16 RAB Workings'!E20 -> 2460360.403 | D48: ='[3]2015-16 RAB Workings'!E7 -> 2460360.403 | E48: 0
A49: DRAB0503 | B49: Straight line depreciation | C49: ='[3]2015-16 RAB Workings'!E21 -> -2945221.03 | D49: ='[3]2015-16 RAB Workings'!E8 -> -2945221.03 | E49: 0
A50: DRAB0505 | B50: Actual additions (recognised in RAB) | C50: ='[3]2015-16 RAB Workings'!E18+'[3]2015-16 RAB Workings'!E22 -> 6586395.256 | D50: ='[3]2015-16 RAB Workings'!E5+'[3]2015-16 RAB Workings'!E9 -> 6586395.256 | E50: 0
A51: DRAB0506 | B51: Disposals | C51: ='[3]2015-16 RAB Workings'!E23 -> 0 | D51: ='[3]2015-16 RAB Workings'!E10 -> 0 | E51: 0
A52: DRAB0507 | B52: Closing value | C52: =SUM(C47:C51) -> 151809545.1 | D52: =SUM(D47:D51) -> 151809545.1 | E52: =SUM(E47:E51) -> 0
B53: For underground network assets 33kV and above:
A54: DRAB0601 | B54: Opening value | C54: ='[3]2015-16 RAB Workings'!F16 -> 25198160.17 | D54: ='[3]2015-16 RAB Workings'!F3 -> 25198160.17 | E54: 0
A55: DRAB0602 | B55: Inflation addition | C55: ='[3]2015-16 RAB Workings'!F20 -> 425484.881 | D55: ='[3]2015-16 RAB Workings'!F7 -> 425484.881 | E55: 0
A56: DRAB0603 | B56: Straight line depreciation | C56: ='[3]2015-16 RAB Workings'!F21 -> -421296.85 | D56: ='[3]2015-16 RAB Workings'!F8 -> -421296.85 | E56: 0
A57: DRAB0605 | B57: Actual additions (recognised in RAB) | C57: ='[3]2015-16 RAB Workings'!F18+'[3]2015-16 RAB Workings'!F22 -> -3486869.864 | D57: ='[3]2015-16 RAB Workings'!F5+'[3]2015-16 RAB Workings'!F9 -> -3486869.864 | E57: 0
A58: DRAB0606 | B58: Disposals | C58: ='[3]2015-16 RAB Workings'!F23 -> 0 | D58: ='[3]2015-16 RAB Workings'!F10 -> 0 | E58: 0
A59: DRAB0607 | B59: Closing value | C59: =SUM(C54:C58) -> 21715478.34 | D59: =SUM(D54:D58) -> 21715478.34 | E59: =SUM(E54:E58) -> 0
B60: Zone substations and transformers
A61: DRAB0701 | B61: Opening value | C61: ='[3]2015-16 RAB Workings'!G16 -> 509264108.4 | D61: ='[3]2015-16 RAB Workings'!G3 -> 509264108.4 | E61: 0
A62: DRAB0702 | B62: Inflation addition | C62: ='[3]2015-16 RAB Workings'!G20 -> 8599206.333 | D62: ='[3]2015-16 RAB Workings'!G7 -> 8599206.333 | E62: 0
A63: DRAB0703 | B63: Straight line depreciation | C63: ='[3]2015-16 RAB Workings'!G21 -> -17550050.35 | D63: ='[3]2015-16 RAB Workings'!G8 -> -17550050.35 | E63: 0
A64: DRAB0705 | B64: Actual additions (recognised in RAB) | C64: ='[3]2015-16 RAB Workings'!G18+'[3]2015-16 RAB Workings'!G22 -> -6767046.094 | D64: ='[3]2015-16 RAB Workings'!G5+'[3]2015-16 RAB Workings'!G9 -> -6767046.094 | E64: 0
A65: DRAB0706 | B65: Disposals | C65: ='[3]2015-16 RAB Workings'!G23 -> 0 | D65: ='[3]2015-16 RAB Workings'!G10 -> 0 | E65: 0
A66: DRAB0707 | B66: Closing value | C66: =SUM(C61:C65) -> 493546218.3 | D66: =SUM(D61:D65) -> 493546218.3 | E66: =SUM(E61:E65) -> 0
B67: For easements:
A68: DRAB0801 | B68: Opening value | C68: ='[3]2015-16 RAB Workings'!H16 -> 6047418.392 | D68: ='[3]2015-16 RAB Workings'!H3 -> 6047418.392 | E68: 0
A69: DRAB0802 | B69: Inflation addition | C69: ='[3]2015-16 RAB Workings'!H20 -> 102114.0066 | D69: ='[3]2015-16 RAB Workings'!H7 -> 102114.0066 | E69: 0
A71: DRAB0805 | B71: Actual additions (recognised in RAB) | C71: ='[3]2015-16 RAB Workings'!H18+'[3]2015-16 RAB Workings'!H22 -> 576044.8207 | D71: ='[3]2015-16 RAB Workings'!H5+'[3]2015-16 RAB Workings'!H9 -> 576044.8207 | E71: 0
A72: DRAB0806 | B72: Disposals | C72: ='[3]2015-16 RAB Workings'!H23 -> 0 | D72: ='[3]2015-16 RAB Workings'!H10 -> 0 | E72: 0
A73: DRAB0807 | B73: Closing value | C73: =SUM(C68:C72) -> 6725577.219 | D73: =SUM(D68:D72) -> 6725577.219 | E73: =SUM(E68:E72) -> 0
B74: For meters:
A75: DRAB0901 | B75: Opening value | C75: 0 | D75: 0 | E75: ='[3]2015-16 RAB Workings'!M3 -> 75610825.33
A76: DRAB0902 | B76: Inflation addition | C76: 0 | D76: 0 | E76: ='[3]2015-16 RAB Workings'!M7 -> 1276730.634
A77: DRAB0903 | B77: Straight line depreciation | C77: 0 | D77: 0 | E77: ='[3]2015-16 RAB Workings'!M8 -> -8283769.9
A78: DRAB0905 | B78: Actual additions (recognised in RAB) | C78: 0 | D78: 0 | E78: ='[3]2015-16 RAB Workings'!M5+'[3]2015-16 RAB Workings'!M9 -> 1955864.076
A79: DRAB0906 | B79: Disposals | C79: 0 | D79: 0 | E79: ='[3]2015-16 RAB Workings'!M10 -> 0
A80: DRAB0907 | B80: Closing value | C80: =SUM(C75:C79) -> 0 | D80: =SUM(D75:D79) -> 0 | E80: =SUM(E75:E79) -> 70559650.14
B81: For “other” asset items with long lives:
A82: DRAB1001 | B82: Opening value | C82: ='[3]2015-16 RAB Workings'!I16 -> 448565094.7 | D82: ='[3]2015-16 RAB Workings'!I3 -> 448565094.7 | E82: ='[3]2015-16 RAB Workings'!N3 -> 156817.4584
A83: DRAB1002 | B83: Inflation addition | C83: ='[3]2015-16 RAB Workings'!I20 -> 7574269.893 | D83: ='[3]2015-16 RAB Workings'!I7 -> 7574269.893 | E83: ='[3]2015-16 RAB Workings'!N7 -> 2647.949578
A84: DRAB1003 | B84: Straight line depreciation | C84: ='[3]2015-16 RAB Workings'!I21 -> -28042254.02 | D84: ='[3]2015-16 RAB Workings'!I8 -> -28042254.02 | E84: ='[3]2015-16 RAB Workings'!N8 -> -14610.24
A85: DRAB1005 | B85: Actual additions (recognised in RAB) | C85: ='[3]2015-16 RAB Workings'!I18+'[3]2015-16 RAB Workings'!I22 -> 28613755.41 | D85: ='[3]2015-16 RAB Workings'!I5+'[3]2015-16 RAB Workings'!I9 -> 28613755.41 | E85: ='[3]2015-16 RAB Workings'!N5+'[3]2015-16 RAB Workings'!N9 -> 0.0004216249508
A86: DRAB1006 | B86: Disposals | C86: ='[3]2015-16 RAB Workings'!I23 -> -956585.63 | D86: ='[3]2015-16 RAB Workings'!I10 -> -956585.63 | E86: ='[3]2015-16 RAB Workings'!N10 -> 0
A87: DRAB1007 | B87: Closing value | C87: =SUM(C82:C86) -> 455754280.4 | D87: =SUM(D82:D86) -> 455754280.4 | E87: =SUM(E82:E86) -> 144855.1684
B88: For “other” asset items with short lives:
A89: DRAB1101 | B89: Opening value | C89: ='[3]2015-16 RAB Workings'!J16 -> 95037468.97 | D89: ='[3]2015-16 RAB Workings'!J3 -> 95037468.97 | E89: 0
A90: DRAB1102 | B90: Inflation addition | C90: ='[3]2015-16 RAB Workings'!J20 -> 1604760.264 | D90: ='[3]2015-16 RAB Workings'!J7 -> 1604760.264 | E90: 0
A91: DRAB1103 | B91: Straight line depreciation | C91: ='[3]2015-16 RAB Workings'!J21 -> 180170.73 | D91: ='[3]2015-16 RAB Workings'!J8 -> 180170.73 | E91: 0
A92: DRAB1105 | B92: Actual additions (recognised in RAB) | C92: ='[3]2015-16 RAB Workings'!J18+'[3]2015-16 RAB Workings'!J22 -> 98792502.71 | D92: ='[3]2015-16 RAB Workings'!J5+'[3]2015-16 RAB Workings'!J9 -> 98792502.71 | E92: 0
A93: DRAB1106 | B93: Disposals | C93: ='[3]2015-16 RAB Workings'!J23 -> -1084857.18 | D93: ='[3]2015-16 RAB Workings'!J10 -> -1084857.18 | E93: 0
A94: DRAB1107 | B94: Closing value | C94: =SUM(C89:C93) -> 194530045.5 | D94: =SUM(D89:D93) -> 194530045.5 | E94: =SUM(E89:E93) -> 0
B98: 3.3.3 - TOTAL DISAGGREGATED RAB ASSET VALUES
C99: Network services | D99: Standard control services | E99: Alternative control services
C100: VALUE ($0's)
C101: =CRY -> 2015-16 | D101: =CRY -> 2015-16 | E101: 2015-16
A102: DRAB1201 | B102: Overhead distribution assets (wires and poles) | C102: =AVERAGE(C26,C31) -> 464307446 | D102: =AVERAGE(D26,D31) -> 539664522.3 | E102: =AVERAGE(E26,E31) -> 0
A103: DRAB1202 | B103: Underground distribution assets (cables, ducts etc) | C103: =AVERAGE(C33,C38) -> 832492953.4 | D103: =AVERAGE(D33,D38) -> 948188803.6 | E103: =AVERAGE(E54,E59) -> 0
A104: DRAB1203 | B104: Distribution substations including transformers | C104: =AVERAGE(C40,C45) -> 1047508005 | D104: =AVERAGE(D40,D45) -> 1047508005 | E104: =AVERAGE(E40,E45) -> 0
A105: DRAB1204 | B105: Overhead assets 33kV and above (wires and towers / poles etc) | C105: =AVERAGE(C47,C52) -> 148758777.8 | D105: =AVERAGE(D47,D52) -> 148758777.8 | E105: =AVERAGE(E47,E52) -> 0
A106: DRAB1205 | B106: Underground assets 33kV and above (cables, ducts etc) | C106: =AVERAGE(C54,C59) -> 23456819.26 | D106: =AVERAGE(D54,D59) -> 23456819.26 | E106: =AVERAGE(E54,E59) -> 0
A107: DRAB1206 | B107: Zone substations | C107: =AVERAGE(C61,C66) -> 501405163.4 | D107: =AVERAGE(D61,D66) -> 501405163.4 | E107: =AVERAGE(E61,E66) -> 0
A108: DRAB1207 | B108: Easements | C108: =AVERAGE(C68,C73) -> 6386497.805 | D108: =AVERAGE(D68,D73) -> 6386497.805 | E108: =AVERAGE(E68,E73) -> 0
A109: DRAB1208 | B109: Meters | C109: =AVERAGE(C75,C80) -> 0 | D109: =AVERAGE(D75,D80) -> 0 | E109: =AVERAGE(E75,E80) -> 73085237.73
A110: DRAB1209 | B110: Other assets with long lives (please specify) | C110: =AVERAGE(C82,C87) -> 452159687.6 | D110: =AVERAGE(D82,D87) -> 452159687.6 | E110: =AVERAGE(E82,E87) -> 150836.3134
A111: DRAB1210 | B111: Other assets with short lives (please specify) | C111: =AVERAGE(C89,C94) -> 144783757.2 | D111: =AVERAGE(D89,D94) -> 144783757.2 | E111: =AVERAGE(E89,E94) -> 0
A112: DRAB13 | B112: Value of Capital Contributions or Contributed Assets (included in the above)
B115: 3.3.4 - ASSET LIVES
C116: Network services | D116: Standard control services | E116: Alternative control services
C117: Service Life (Years)
C118: =CRY -> 2015-16 | D118: =CRY -> 2015-16 | E118: 2015-16
B119: ESTIMATED SERVICE LIFE OF NEW ASSETS
A120: DRAB1401 | B120: Overhead network assets less than 33kV (wires and poles) | C120: ='[3]Life Calcs 15-16'!E14 -> 55 | D120: ='[3]Life Calcs 15-16'!K14 -> 55 | E120: 0
A121: DRAB1402 | B121: Underground network assets less than 33kV (cables) | C121: ='[3]Life Calcs 15-16'!E24 -> 55 | D121: ='[3]Life Calcs 15-16'!K24 -> 55 | E121: 0
A122: DRAB1403 | B122: Distribution substations including transformers | C122: ='[3]Life Calcs 15-16'!E34 -> 45 | D122: ='[3]Life Calcs 15-16'!K34 -> 45 | E122: 0
A123: DRAB1404 | B123: Overhead network assets 33kV and above (wires and towers / poles etc) | C123: ='[3]Life Calcs 15-16'!E42 -> 55 | D123: ='[3]Life Calcs 15-16'!K42 -> 55 | E123: 0
A124: DRAB1405 | B124: Underground network assets 33kV and above(cables, ducts etc) | C124: ='[3]Life Calcs 15-16'!E50 -> 55 | D124: ='[3]Life Calcs 15-16'!K50 -> 55 | E124: 0
A125: DRAB1406 | B125: Zone substations and transformers | C125: ='[3]Life Calcs 15-16'!E59 -> 45 | D125: ='[3]Life Calcs 15-16'!K59 -> 45 | E125: 0
A126: DRAB1407 | B126: Meters | C126: 0 | D126: 0 | E126: ='[3]Life Calcs 15-16'!Q67 -> 15
A127: DRAB1408 | B127: “Other” assets with long lives | C127: ='[3]Life Calcs 15-16'!E81 -> 17.89109511 | D127: ='[3]Life Calcs 15-16'!K81 -> 17.89109511 | E127: ='[3]Life Calcs 15-16'!Q74 -> 15
A128: DRAB1409 | B128: “Other” assets with short lives | C128: ='[3]Life Calcs 15-16'!E90 -> 5 | D128: ='[3]Life Calcs 15-16'!K90 -> 5 | E128: 0
B129: ESTIMATED RESIDUAL SERVICE LIFE
A130: DRAB1501 | B130: Overhead network assets less than 33kV (wires and poles) | C130: ='[3]Life Calcs 15-16'!E128 -> 11.86965576 | D130: ='[3]Life Calcs 15-16'!K128 -> 12.02433767 | E130: 0
A131: DRAB1502 | B131: Underground network assets less than 33kV (cables) | C131: ='[3]Life Calcs 15-16'!E138 -> 12.83572995 | D131: ='[3]Life Calcs 15-16'!K138 -> 13.01232836 | E131: 0
A132: DRAB1503 | B132: Distribution substations including transformers | C132: ='[3]Life Calcs 15-16'!E148 -> 20.78893851 | D132: ='[3]Life Calcs 15-16'!K148 -> 20.78893851 | E132: 0
A133: DRAB1504 | B133: Overhead network assets 33kV and above (wires and towers / poles etc) | C133: ='[3]Life Calcs 15-16'!E156 -> 48.82689408 | D133: ='[3]Life Calcs 15-16'!K156 -> 48.82689408 | E133: 0
A134: DRAB1505 | B134: Underground network assets 33kV and above (cables, ducts etc) | C134: ='[3]Life Calcs 15-16'!E164 -> 48.82689408 | D134: ='[3]Life Calcs 15-16'!K164 -> 48.82689408 | E134: 0
A135: DRAB1506 | B135: Zone substations and transformers | C135: ='[3]Life Calcs 15-16'!E173 -> 26.76350146 | D135: ='[3]Life Calcs 15-16'!K173 -> 26.76350146 | E135: 0
A136: DRAB1507 | B136: Meters | C136: 0 | D136: 0 | E136: ='[3]Life Calcs 15-16'!Q181 -> 8.280852473
A137: DRAB1508 | B137: “Other” assets with long lives | C137: ='[3]Life Calcs 15-16'!E195 -> 7.313570926 | D137: ='[3]Life Calcs 15-16'!K195 -> 7.313570926 | E137: ='[3]Life Calcs 15-16'!Q188 -> 9.91746186
A138: DRAB1509 | B138: “Other” assets with short lives | C138: ='[3]Life Calcs 15-16'!E204 -> 3.150979947 | D138: ='[3]Life Calcs 15-16'!K204 -> 3.150979947 | E138: 0

Sheet 3.4 Operational data
B1: REGULATORY REPORTING STATEMENT
B2: =dms_TradingName -> SA Power Networks
B3: =CONCATENATE("Benchmarking RIN response ",CRY) -> Benchmarking RIN response 2015-16
B4: 3.4 OPERATIONAL DATA
B6: There are THREE tables on this worksheet. Each table has been grouped for ease of navigation. See the Instructions sheet on how to group or ungroup tables.
B8: 3.4.1 - ENERGY DELIVERY
D9: Standard control services
D10: VOLUME (0's)
C11: Units | D11: =CRY -> 2015-16
A12: DOPED01 | B12: Total energy delivered | C12: GWh | D12: 10355.11591
B15: 3.4.1.1 - Energy grouping - delivery by chargeable quantity
A16: DOPED0201 | B16: Energy Delivery where time of use is not a determinant | C16: GWh | D16: 8962.408579
A17: DOPED0202 | B17: Energy Delivery at On-peak times | C17: GWh | D17: 404.9605103
A18: DOPED0203 | B18: Energy Delivery at Shoulder times | C18: GWh | D18: 0
A19: DOPED0204 | B19: Energy Delivery at Off-peak times | C19: GWh | D19: 352.797865
A20: DOPED0205 | B20: Controlled load energy deliveries | C20: GWh | D20: 531.2450836
A21: DOPED0206 | B21: Energy Delivery to unmetered supplies | C21: GWh | D21: 103.7038712
B23: 3.4.1.2 - Energy - received from TNSP and other DNSPs by time of receipt
A24: DOPED0301 | B24: Energy into DNSP network at On-peak times | C24: GWh | D24: 4891.585936
A25: DOPED0302 | B25: Energy into DNSP network at Shoulder times | C25: GWh
A26: DOPED0303 | B26: Energy into DNSP network at Off-peak times | C26: GWh | D26: 5424.081694
A27: DOPED0304 | B27: Energy received from TNSP and other DNSPs not included in the above categories | C27: GWh
B29: 3.4.1.3 - Energy - received into DNSP system from embedded generation by time of receipt
A30: DOPED0401 | B30: Energy into DNSP network at On-peak times from non-residential embedded generation | C30: GWh | D30: 142.8279323
A31: DOPED0402 | B31: Energy into DNSP network at Shoulder times from non-residential embedded generation | C31: GWh
A32: DOPED0403 | B32: Energy into DNSP network at Off-peak times from non-residential embedded generation | C32: GWh | D32: 169.4297741
A33: DOPED0404 | B33: Energy received from embedded generation not included in above categories from non-residential embedded generation | C33: GWh
A34: DOPED0405 | B34: Energy into DNSP network at On-peak times from residential embedded generation | C34: GWh | D34: 368.9786084
A35: DOPED0406 | B35: Energy into DNSP network at Shoulder times from residential embedded generation | C35: GWh
A36: DOPED0407 | B36: Energy into DNSP network at Off-peak times from residential embedded generation | C36: GWh | D36: 158.8367032
A37: DOPED0408 | B37: Energy received from embedded generation not included in above categories from residential embedded generation | C37: GWh
B39: 3.4.1.4 - Energy grouping - customer type or class
A40: DOPED0501 | B40: Residential customers energy deliveries | C40: GWh | D40: 3896.647534
A41: DOPED0502 | B41: Non residential customers not on demand tariffs energy deliveries | C41: GWh | D41: 1294.88082
A42: DOPED0503 | B42: Non-residential low voltage demand tariff customers energy deliveries | C42: GWh | D42: 3242.807427
A43: DOPED0504 | B43: Non-residential high voltage demand tariff customers energy deliveries | C43: GWh | D43: 1817.076257
A44: DOPED0505 | B44: Other Customer Class Energy Deliveries | C44: GWh | D44: 103.7038712
B47: 3.4.2 - CUSTOMER NUMBERS
D48: Standard control services
D49: VOLUME (0's)
D50: =CRY -> 2015-16
B51: 3.4.2.1 - Distribution customer numbers by customer type or class
A52: DOPCN0101 | B52: Residential customer numbers | D52: 756227
A53: DOPCN0102 | B53: Non residential customers not on demand tariff customer numbers | D53: 90790
A54: DOPCN0103 | B54: Low voltage demand tariff customer numbers | D54: 7474
A55: DOPCN0104 | B55: High voltage demand tariff customer numbers | D55: 251
A56: DOPCN0105 | B56: Unmetered Customer Numbers | D56: 2505
A57: DOPCN0106 | B57: Other Customer Numbers | D57: 1399.5
A58: DOPCN01 | B58: Total customer numbers | D58: =SUM(D52:D57) -> 858646.5
B60: 3.4.2.2 - Distribution customer numbers by location on the network
A61: DOPCN0201 | B61: Customers on CBD network | D61: 5094.5
A62: DOPCN0202 | B62: Customers on Urban network | D62: 594736
A63: DOPCN0203 | B63: Customers on Short rural network | D63: 120275
A64: DOPCN0204 | B64: Customers on Long rural network | D64: 138541
A65: DOPCN02 | B65: Total customer numbers | D65: =SUM(D61:D64) -> 858646.5
B67: 3.4.2.3 - Distribution customer numbers by TasNetworks (D) feeder categories (TasNetworks (D) only)
B68: Critical Infrastructure
B69: High Density Commercial
B70: Urban
B71: High Density Rural
B72: Low Density Rural
B73: Total customer numbers | D73: =SUM(D68:D72) -> 0
B75: 3.4.2.4 - Unmetered Supply TasNetworks (D) only)
A76: DOPCN0301 | B76: Number of unmetered connections reported in customer numbers in the economic benchmarking RIN
A77: DOPCN0302 | B77: Unmetered connections not reported in customer numbers in the economic benchmarking RIN
A78: DOPCN0303 | B78: Total unmetered connections
B81: 3.4.3 - SYSTEM DEMAND
D82: Standard control services
D83: VOLUME (0's)
C84: Units | D84: =CRY -> 2015-16
B85: 3.4.3.1 - Annual system maximum demand characteristics at the zone substation level – MW measure
A86: DOPSD0101 | B86: Non-coincident Summated Raw System Annual Maximum Demand | C86: MW | D86: 2894.417607
A87: DOPSD0102 | B87: Non–coincident Summated Weather Adjusted System Annual Maximum Demand 10% POE | C87: MW | D87: 3050.922997
A88: DOPSD0103 | B88: Non–coincident Summated Weather Adjusted System Annual Maximum Demand 50% POE | C88: MW | D88: 2764.015063
A89: DOPSD0104 | B89: Coincident Raw System Annual Maximum Demand | C89: MW | D89: 2533.479304
A90: DOPSD0105 | B90: Coincident Weather Adjusted System Annual Maximum Demand 10% POE | C90: MW | D90: 2672.761164
A91: DOPSD0106 | B91: Coincident Weather Adjusted System Annual Maximum Demand 50% POE | C91: MW | D91: 2416.707698
B93: 3.4.3.2 - Annual system maximum demand characteristics at the transmission connection point – MW measure
A94: DOPSD0107 | B94: Non-coincident Summated Raw System Annual Maximum Demand | C94: MW | D94: 2775.961812
A95: DOPSD0108 | B95: Non–coincident Summated Weather Adjusted System Annual Maximum Demand 10% POE | C95: MW | D95: 2956.09665
A96: DOPSD0109 | B96: Non–coincident Summated Weather Adjusted System Annual Maximum Demand 50% POE | C96: MW | D96: 2676.787766
A97: DOPSD0110 | B97: Coincident Raw System Annual Maximum Demand | C97: MW | D97: 2599.147816
A98: DOPSD0111 | B98: Coincident Weather Adjusted System Annual Maximum Demand 10% POE | C98: MW | D98: 2781.552163
A99: DOPSD0112 | B99: Coincident Weather Adjusted System Annual Maximum Demand 50% POE | C99: MW | D99: 2520.490798
B101: 3.4.3.3 - Annual system maximum demand characteristics at the zone substation level – MVA measure
A102: DOPSD0201 | B102: Non–coincident Summated Raw System Annual Maximum Demand | C102: MVA | D102: 3001.995961
A103: DOPSD0202 | B103: Non–coincident Summated Weather Adjusted System Annual Maximum Demand 10% POE | C103: MVA | D103: 3172.333784
A104: DOPSD0203 | B104: Non–coincident Summated Weather Adjusted System Annual Maximum Demand 50% POE | C104: MVA | D104: 2874.550503
A105: DOPSD0204 | B105: Coincident Raw System Annual Maximum Demand | C105: MVA | D105: 2617.615983
A106: DOPSD0205 | B106: Coincident Weather Adjusted System Annual Maximum Demand 10% POE | C106: MVA | D106: 2768.270408
A107: DOPSD0206 | B107: Coincident Weather Adjusted System Annual Maximum Demand 50% POE | C107: MVA | D107: 2503.194655
B109: 3.4.3.4 - Annual system maximum demand characteristics at the transmission connection point – MVA measure
A110: DOPSD0207 | B110: Non–coincident Summated Raw System Annual Maximum Demand | C110: MVA | D110: 2802.498343
A111: DOPSD0208 | B111: Non–coincident Summated Weather Adjusted System Annual Maximum Demand 10% POE | C111: MVA | D111: 2984.234731
A112: DOPSD0209 | B112: Non–coincident Summated Weather Adjusted System Annual Maximum Demand 50% POE | C112: MVA | D112: 2702.500702
A113: DOPSD0210 | B113: Coincident Raw System Annual Maximum Demand | C113: MVA | D113: 2617.551714
A114: DOPSD0211 | B114: Coincident Weather Adjusted System Annual Maximum Demand 10% POE | C114: MVA | D114: 2807.66593
A115: DOPSD0212 | B115: Coincident Weather Adjusted System Annual Maximum Demand 50% POE | C115: MVA | D115: 2544.315432
B117: 3.4.3.5 - Power factor conversion between MVA and MW
A118: DOPSD0301 | B118: Average overall network power factor conversion between MVA and MW | C118: Factor | D118: 0.9905311164
A119: DOPSD0302 | B119: Average power factor conversion for low voltage distribution lines | C119: Factor | D119: 0.9397472541
A120: DOPSD0303 | B120: Average power factor conversion for 3.3 kV lines | C120: Factor | D120: 0.8974784822
A121: DOPSD0304 | B121: Average power factor conversion for 6.6 kV lines | C121: Factor | D121: 0.901425106
A122: DOPSD0305 | B122: Average power factor conversion for 7.6 kV lines | C122: Factor | D122: 0.9446965177
A123: DOPSD0306 | B123: Average power factor conversion for 11 kV lines | C123: Factor | D123: 0.9651948608
A124: DOPSD0307 | B124: Average power factor conversion for SWER lines | C124: Factor | D124: 0.962104098
A125: DOPSD0308 | B125: Average power factor conversion for 22 kV lines | C125: Factor
A126: DOPSD0309 | B126: Average power factor conversion for 33 kV lines | C126: Factor | D126: 0.9648804402
A127: DOPSD0310 | B127: Average power factor conversion for 44 kV lines | C127: Factor
A128: DOPSD0311 | B128: Average power factor conversion for 66 kV lines | C128: Factor | D128: 0.9943809942
A129: DOPSD0312 | B129: Average power factor conversion for 110 kV lines | C129: Factor
A130: DOPSD0313 | B130: Average power factor conversion for 132 kV lines | C130: Factor
A131: DOPSD0314 | B131: Average power factor conversion for 220 kV lines | C131: Factor
B133: 3.4.3.6 - Demand supplied (for customers charged on this basis) – MW measure
A134: DOPSD0401 | B134: Summated Chargeable Contracted Maximum Demand | C134: MW
A135: DOPSD0402 | B135: Summated Chargeable Measured Maximum Demand | C135: MW | D135: 0.031937
B137: 3.4.3.7 - Demand supplied (for customers charged on this basis) – MVA measure
A138: DOPSD0403 | B138: Summated Chargeable Contracted Maximum Demand | C138: MVA | D138: 2190.204487
A139: DOPSD0404 | B139: Summated Chargeable Measured Maximum Demand | C139: MVA

Sheet 3.5 Physical assets
B1: REGULATORY REPORTING STATEMENT
B2: =dms_TradingName -> SA Power Networks
B3: =CONCATENATE("Benchmarking RIN response ",CRY) -> Benchmarking RIN response 2015-16
B4: 3.5 PHYSICAL ASSETS
B6: There are THREE tables on this worksheet. Each table has been grouped (and sub-grouped) for ease of navigation. See the Instructions sheet on how to group or ungroup tables.
B8: 3.5.1 - NETWORK CAPACITIES
C9: VOLUME in KM's (0's)
C10: =CRY -> 2015-16
B11: Circuit length (kilometres)
B12: 3.5.1.1 - Overhead network length of circuit at each voltage
A13: DPA0101 | B13: Overhead low voltage distribution | C13: 18909
A14: DPA0102 | B14: Overhead 2.2 kV
A15: DPA0103 | B15: Overhead 6.6kv
A16: DPA0104 | B16: Overhead 7.6 kV | C16: 289
A17: DPA0105 | B17: Overhead 11 kV | C17: 17587
A18: DPA0106 | B18: Overhead SWER | C18: 29136
A19: DPA0107 | B19: Overhead 22 kV
A20: DPA0108 | B20: Overhead 33 kV | C20: 3962
A21: DPA0109 | B21: Overhead 44 kV
A22: DPA0110 | B22: Overhead 66 kV | C22: 1439
A23: DPA0111 | B23: Overhead 110kV
A24: DPA0112 | B24: Overhead 132 kV
A25: DPA0113 | B25: Overhead 220kV
A26: DPA0114 | B26: Other
A27: DPA01 | B27: Total overhead circuit km | C27: =SUM(C9:C26) -> 71322
B28: 3.5.1.2 - Underground network circuit length at each voltage
A29: DPA0201 | B29: Underground low voltage distribution | C29: 13273
A30: DPA0202 | B30: Underground 5 kV
A31: DPA0203 | B31: Underground 6.6 Kv
A32: DPA0204 | B32: Underground 7.6 kV | C32: 110
A33: DPA0205 | B33: Underground 11 kV | C33: 3874
A34: DPA0206 | B34: Underground SWER | C34: 58
A35: DPA0207 | B35: Underground 22 kV
A36: DPA0208 | B36: Underground 33 kV | C36: 118
A37: DPA0209 | B37: Underground 66 kV | C37: 53
A38: DPA0210 | B38: Underground 110 kV
A39: DPA0211 | B39: Underground 132 kV
A40: DPA0212 | B40: Other
A41: DPA02 | B41: Total underground circuit km | C41: =SUM(C29:C40) -> 17486
C42: VOLUME in MVA (0's)
B43: Circuit Capacity (MVA) | C43: =CRY -> 2015-16
B44: 3.5.1.3 - Estimated overhead network weighted average MVA capacity by voltage class
A45: DPA0301 | B45: Overhead low voltage distribution | C45: 0.17
A46: DPA0302 | B46: Overhead 6.6 kV
A47: DPA0303 | B47: Overhead 7.6 kV | C47: 3.25
A48: DPA0304 | B48: Overhead 11 kV | C48: 3.9
A49: DPA0305 | B49: Overhead SWER | C49: 0.2
A50: DPA0306 | B50: Overhead 22 kV
A51: DPA0307 | B51: Overhead 33 kV | C51: 10
A52: DPA0308 | B52: Overhead 44 kV
A53: DPA0309 | B53: Overhead 66 kV | C53: 58
A54: DPA0310 | B54: Overhead 110 kV
A55: DPA0311 | B55: Overhead 132 kV
A56: DPA0312 | B56: Overhead 220 kV
A57: DPA0313 | B57: Other
B58: 3.5.1.4 - Estimated underground network weighted average MVA capacity by voltage class
A59: DPA0401 | B59: Underground low voltage distribution | C59: 0.1
A60: DPA0402 | B60: Underground 5 kV
A61: DPA0403 | B61: Underground 6.6 kV
A62: DPA0404 | B62: Underground 7.6 kV | C62: 3.23
A63: DPA0405 | B63: Underground 11 kV | C63: 4.77
A64: DPA0406 | B64: Underground SWER | C64: 0.2
A65: DPA0407 | B65: Underground 12.7 kV
A66: DPA0408 | B66: Underground 22 kV
A67: DPA0409 | B67: Underground 33 kV | C67: 14
A68: DPA0410 | B68: Underground 66 kV | C68: 127
A69: DPA0411 | B69: Underground 110 kV
A70: DPA0412 | B70: Underground 132 kV
A71: DPA0413 | B71: Other
B75: 3.5.2 - TRANSFORMER CAPACITIES
C76: VOLUME in MVA (0's)
C77: =CRY -> 2015-16
B78: 3.5.2.1 - Distribution transformer total installed capacity
A79: DPA0501 | B79: Distribution transformer capacity owned by utility | C79: 8931.3652
A80: DPA0502 | B80: Distribution transformer capacity owned by High Voltage Customers | C80: 788.5582125
A81: DPA0503 | B81: Cold spare capacity included in DPA0501 | C81: 158.547
B82: 3.5.2.2 - Zone substation transformer capacity
A83: DPA0601 | B83: Total installed capacity for first step transformation where there are two steps to reach distribution voltage | C83: 304.6
A84: DPA0602 | B84: Total installed capacity for second step transformation where there are two steps to reach distribution voltage | C84: 125.3
A85: DPA0603 | B85: Total zone substation transformer capacity where there is only a single step transformation to reach distribution voltage | C85: 4753.89
A86: DPA0604 | B86: Total zone substation transformer capacity | C86: 5805.5
A87: DPA0605 | B87: Cold spare capacity of zone substation transformers included in DPA0604 | C87: 621.7
B88: 3.5.2.3 - Distribution - other transformer capacity
B89: Distribution other - transformer capacity owned by utility
B93: 3.5.3 - PUBLIC LIGHTING
C94: VOLUME (0's)
C95: =CRY -> 2015-16
A96: DPA0701 | B96: Public lighting luminaires | C96: 228137
A97: DPA0702 | B97: Public lighting poles | C97: =5000+100023 -> 105023
A98: DPA0703 | B98: Public lighting columns

Sheet 3.6 Quality of service
B1: REGULATORY REPORTING STATEMENT
B2: =dms_TradingName -> SA Power Networks
B3: =CONCATENATE("Benchmarking RIN response ",CRY) -> Benchmarking RIN response 2015-16
B4: 3.6 QUALITY OF SERVICE DATA
B7: 3.6.1 - RELIABILITY
D8: (0's)
C9: Units | D9: =CRY -> 2015-16
B10: INCLUSIVE OF MEDs
A11: DQS0101 | B11: Whole of network unplanned SAIDI | C11: minutes/customer | D11: 172.6
A12: DQS0102 | B12: Whole of network unplanned SAIDI excluding excluded outages | C12: minutes/customer | D12: 147.68
A13: DQS0103 | B13: Whole of network unplanned SAIFI | C13: interruptions/customer | D13: 1.416
A14: DQS0104 | B14: Whole of network unplanned SAIFI excluding excluded outages | C14: interruptions/customer | D14: 1.253
B15: EXCLUSIVE OF MEDs
A16: DQS0105 | B16: Whole of network unplanned SAIDI | C16: minutes/customer | D16: 163.9
A17: DQS0106 | B17: Whole of network unplanned SAIDI excluding excluded outages | C17: minutes/customer | D17: 138.97
A18: DQS0107 | B18: Whole of network unplanned SAIFI | C18: interruptions/customer | D18: 1.364
A19: DQS0108 | B19: Whole of network unplanned SAIFI excluding excluded outages | C19: interruptions/customer | D19: 1.201
B21: 3.6.2 - ENERGY NOT SUPPLIED
D22: (0's)
C23: Units | D23: =CRY -> 2015-16
A24: DQS0201 | B24: Energy Not Supplied (planned) | C24: GWh | D24: 1.53317594
A25: DQS0202 | B25: Energy Not Supplied (unplanned) | C25: GWh | D25: 2.902813113
A26: DQS02 | B26: Total | D26: =SUM(D24:D25) -> 4.435989053
B28: 3.6.3 - SYSTEM LOSSES
D29: (0's)
C30: Unit | D30: =CRY -> 2015-16
A31: DQS03 | B31: System losses | C31: % | D31: 0.07526949829
B33: 3.6.4 - CAPACITY UTILISATION
D34: (0's)
C35: Unit | D35: =CRY -> 2015-16
A36: DQS04 | B36: Overall utilisation | C36: % | D36: 0.5170947163

Sheet 3.7 Operating environment
B1: REGULATORY REPORTING STATEMENT
B2: =dms_TradingName -> SA Power Networks
B3: =CONCATENATE("Benchmarking RIN response ",CRY) -> Benchmarking RIN response 2015-16
B4: 3.7 OPERATING ENVIRONMENT FACTORS
B7: 3.7.1 - DENSITY FACTORS
D8: (0's)
C9: Units | D9: =CRY -> 2015-16
A10: DOEF0101 | B10: Customer density | C10: Customer / km | D10: ='3.4 Operational data'!D65/dms_030703_01_Values -> 10.49816048
A11: DOEF0102 | B11: Energy density | C11: MWh/customer | D11: =1000*'3.4 Operational data'!D12/'3.4 Operational data'!D65 -> 12.05981263
A12: DOEF0103 | B12: Demand density | C12: kVA / customer | D12: =1000*'3.4 Operational data'!D86/'3.4 Operational data'!D65 -> 3.370907128
B14: 3.7.2 - TERRAIN FACTORS
D15: (0's)
D16: =CRY -> 2015-16
A17: DOEF0201 | B17: Rural proportion | C17: % | D17: 0.7311824744
A18: DOEF0202 | B18: Urban and CBD vegetation maintenance spans | C18: Number of spans | D18: 14444
A19: DOEF0203 | B19: Rural vegetation maintenance spans | C19: Number of spans | D19: 53151
A20: DOEF0204 | B20: Total vegetation maintenance spans | C20: Number of spans | D20: 67595
A21: DOEF0205 | B21: Total number of spans | C21: Number of spans | D21: 745696
A22: DOEF0206 | B22: Average urban and CBD vegetation maintenance span cycle | C22: Years | D22: 2.815
A23: DOEF0207 | B23: Average rural vegetation maintenance span cycle | C23: Years | D23: 1.39
A24: DOEF0208 | B24: Average number of trees per urban and CBD vegetation maintenance span | C24: Trees | D24: 3.377
A25: DOEF0209 | B25: Average number of trees per rural vegetation maintenance span | C25: Trees | D25: 8.578
A26: DOEF0210 | B26: Average number of defects per urban and CBD vegetation maintenance span | C26: Defects | D26: 1.907
A27: DOEF0211 | B27: Average number of defects per rural vegetation maintenance span | C27: Defects | D27: 1.195
A28: DOEF0212 | B28: Tropical proportion | C28: Spans | D28: 0
A29: DOEF0213 | B29: Standard vehicle access | C29: km | D29: 5725.314
A30: DOEF0214 | B30: Bushfire risk | C30: Spans | D30: 416045
B32: 3.7.3 - SERVICE AREA FACTORS
D33: (0's)
D34: =CRY -> 2015-16
A35: DOEF0301 | B35: Route Line length | C35: km | D35: 81790.18618

Sheet NSP amendments
B1: =CONCATENATE(dms_TradingName," data amendments") -> SA Power Networks data amendments
B2: Amended Table | C2: Comments
